Cogmind - Beta 11 X4 @@@ ROGUE MODE // 2021.05.23 @ 16:29:41 Player: Terminus Result: Self-destructed Performance ------------- Evolutions (9) 4500 Regions Visited (35) 7000 Robots Destroyed (858) 4290 Value Destroyed (41372) 41372 Prototype IDs (53) 1060 Alien Tech Used (3) 600 Bonus (19841) 19841 TOTAL SCORE: 78663 Bonus ------- Triggered High Security 1000 High Alert Combat Kills 12354 Follower Combat Kills 2517 Network Hubs Disabled 200 Met Data Miner 300 Met Imprinter 300 Met Warlord at Base 500 MAIN.C Attacked Warlord 500 Warlord Defense Kill 468 Met R17 at Cetus 500 Met Warlord at Research 2000 Scanned by Researcher 500 Friendly Fire -1298 Cogmind --------- Core Integrity 1137/1600 Matter 100/700 Energy 1550/1550 System Corruption 3% Temperature Cool (0) Movement Treading (252) Ox1 Location -1/Access Parts ------- > --- POWER (3) -------- Improved Quantum Reactor Vortex Chain Reactor > --- PROPULSION (4) --- Advanced Heavy Treads Centrium Heavy Treads > --- UTILITY (15) ----- Experimental Power Amplifier 2N-1CE's Frost Array Huge Storage Unit Experimental Energy Well Advanced Matter Compressor Machine Analyzer Experimental Sensor Array Advanced Signal Interpreter Advanced Target Analyzer Advanced Weapon Cycler Advanced Weapon Cycler SHELL Armor > --- WEAPON (4) ------- Hypercooled Linear Accelerator > --- INVENTORY (25) --- Improved Quantum Reactor Improved Heavy Treads Armored Heavy Treads Advanced Cooling System Experimental Energy Well (600) Experimental Energy Well (600) Advanced Matter Compressor (400) Advanced Matter Compressor (400) Advanced Matter Compressor (400) Long-range Tractor Beam Subatomic Replicator Potential Cannon Hypercooled Linear Accelerator Heavy Proton Missile Launcher Gamma Bomb Array Improved Plasma Cutter Peak State ------------ > --- POWER ------------ Improved Quantum Reactor Vortex Chain Reactor > --- PROPULSION ------- Advanced Heavy Treads Centrium Heavy Treads > --- UTILITY ---------- Experimental Power Amplifier 2N-1CE's Frost Array Huge Storage Unit Experimental Energy Well Advanced Matter Compressor Machine Analyzer Experimental Sensor Array Advanced Signal Interpreter Advanced Target Analyzer Advanced Weapon Cycler Advanced Weapon Cycler SHELL Armor Improved Hacking Suite > --- WEAPON ----------- Hypercooled Linear Accelerator Hypercooled Linear Accelerator Perforator > --- INVENTORY -------- Improved Quantum Reactor Improved Heavy Treads Armored Heavy Treads Advanced Cooling System Experimental Energy Well Experimental Energy Well Advanced Matter Compressor Advanced Matter Compressor Advanced Matter Compressor Long-range Tractor Beam Transdimensional Reconstructor Transdimensional Reconstructor Transdimensional Reconstructor High-powered Transdimensional Reconstructor Subatomic Replicator Potential Cannon Hypercooled Linear Accelerator Heavy Proton Missile Launcher Gamma Bomb Array Improved Plasma Cutter [Rating: 243] Favorites ----------- Power Improved Deuterium Engine Engine Improved Deuterium Engine Power Core Fission Core Reactor Improved Quantum Reactor Propulsion Improved Treads Treads Improved Treads Utility Improved Hacking Suite Device Experimental Sensor Array Storage Huge Storage Unit Processor Advanced Signal Interpreter Hackware Improved Hacking Suite Protection Improved Medium Armor Plating Weapon Heavy Flak Cannon Energy Gun Advanced Beam Rifle Energy Cannon Advanced Beam Cannon Ballistic Gun Enhanced Autogun Ballistic Cannon Heavy Flak Cannon Launcher Mini Smartbomb Launcher Special Weapon Remote Datajack Slashing Weapon Plasma Sword Piercing Weapon Heavy Pick Build | -11 -10 -10 -9 -9 -8 -8 -7 -7 -7 -7 -6 -6 -6 -6 -6 -6 -6 -5 -5 -5 -5 -5 -4 -4 -4 -4 -4 -4 -4 -4 -3 -3 -2 -2 -1 ------- Run | Scr Mat Min Mat Min Mat Sto Fac Low Low Zio Pro Fac Was Fac Low Low Dat Pro Fac Upp Upp War Pro Fac Was Fac Ext Cet Arc Hub Res Qua Res Tes Acc Slots Evolved 18 | . . . 2 . 2 . 2 . . . . 2 . . . . . . 2 . . . . 2 . . . . . . 2 . 2 . 2 Power 2 | . . . . . . . . . . . . . . . . . . . . . . . . 1 . . . . . . . . . . 1 Propulsion 2 | . . . . . 1 . . . . . . 1 . . . . . . . . . . . . . . . . . . . . . . . Utility 13 | . . . 1 . 1 . 2 . . . . 1 . . . . . . 2 . . . . 1 . . . . . . 2 . 2 . 1 Weapon 1 | . . . 1 . . . . . . . . . . . . . . . . . . . . . . . . . . . . . . . . Parts Attached 653 | 6 17 7 26 1 29 13 26 15 12 5 6 32 13 45 9 7 3 10 57 13 3 14 . 26 11 13 7 17 11 17 60 58 20 41 3 Power 50 | 1 3 . 3 . 1 1 2 . 1 . 1 . 3 1 1 . . . 2 1 . 1 . 1 1 1 2 3 1 . 8 5 2 3 1 Engine 15 | 1 3 . 3 . 1 1 2 . 1 . . . . . . . . . 1 1 . . . 1 . . . . . . . . . . . Core 9 | . . . . . . . . . . . 1 . 1 . 1 . . . 1 . . . . . . . 2 1 . . . 2 . . . Reactor 26 | . . . . . . . . . . . . . 2 1 . . . . . . . 1 . . 1 1 . 2 1 . 8 3 2 3 1 Propulsion 70 | 2 4 . 8 . 5 5 5 . 1 . . 3 2 3 . 2 . . 5 1 . 1 . 4 2 . 1 2 . . 8 4 1 1 . Treads 70 | 2 4 . 8 . 5 5 5 . 1 . . 3 2 3 . 2 . . 5 1 . 1 . 4 2 . 1 2 . . 8 4 1 1 . Leg . | . . . . . . . . . . . . . . . . . . . . . . . . . . . . . . . . . . . . Wheel . | . . . . . . . . . . . . . . . . . . . . . . . . . . . . . . . . . . . . Hover . | . . . . . . . . . . . . . . . . . . . . . . . . . . . . . . . . . . . . Flight . | . . . . . . . . . . . . . . . . . . . . . . . . . . . . . . . . . . . . Utility 338 | 1 4 2 4 1 7 1 12 9 4 1 2 15 8 28 7 3 1 6 36 5 3 12 . 14 3 7 1 8 8 14 28 34 17 30 2 Device 209 | . 2 1 1 . 1 . 5 8 4 . 2 14 3 19 6 2 1 5 21 3 3 9 . 10 3 6 1 4 3 7 20 18 6 19 2 Storage 15 | 1 1 . . . 1 . 1 . . . . . . . . . . . 1 . . 1 . . . 1 . . . . . 3 1 4 . Processor 20 | . . . . . . . 1 1 . . . . 1 1 . . . . 2 . . . . 2 . . . . . 1 3 3 3 2 . Hackware 10 | . . . . . 1 . 1 . . . . 1 . 2 . . . . 2 . . . . 1 . . . . 1 . . 1 . . . Protection 84 | . 1 1 3 1 4 1 4 . . 1 . . 4 6 1 1 . 1 10 2 . 2 . 1 . . . 4 4 6 5 9 7 5 . Artifact . | . . . . . . . . . . . . . . . . . . . . . . . . . . . . . . . . . . . . Weapon 195 | 2 6 5 11 . 16 6 7 6 6 4 3 14 . 13 1 2 2 4 14 6 . . . 7 5 5 3 4 2 3 16 15 . 7 . Energy Gun 16 | 1 . 1 5 . 7 1 . . . . . . . . . . . . . . . . . . . . . . . . . 1 . . . Energy Cannon 12 | . 3 . 2 . . . 1 . . . . . . 1 . . . . 1 . . . . . . 2 . . . . . 1 . 1 . Ballistic Gun 83 | 1 2 3 4 . 6 5 5 3 3 4 1 10 . 2 . . . . . . . . . 1 5 2 3 3 2 2 11 5 . . . Ballistic Cannon 47 | . . . . . . . . . . . . 1 . 9 1 1 1 2 9 3 . . . 3 . . . . . . 4 7 . 6 . Launcher 18 | . 1 1 . . 3 . . 1 1 . 1 . . . . 1 . . 1 2 . . . 1 . 1 . 1 . 1 1 1 . . . Special Weapon 4 | . . . . . . . 1 . . . . 1 . . . . . . 1 . . . . 1 . . . . . . . . . . . Impact Weapon . | . . . . . . . . . . . . . . . . . . . . . . . . . . . . . . . . . . . . Slashing Weapon 11 | . . . . . . . . 2 2 . 1 2 . 1 . . . . 1 1 . . . 1 . . . . . . . . . . . Piercing Weapon 4 | . . . . . . . . . . . . . . . . . 1 2 1 . . . . . . . . . . . . . . . . Special Melee Weapon . | . . . . . . . . . . . . . . . . . . . . . . . . . . . . . . . . . . . . Unidentified Prototypes 44 | . . . 4 . 3 2 . . . . . 2 1 1 . . . . . 1 . 4 . 2 . 3 . 3 . . 2 8 1 5 2 Corrupted Parts 2 | . . 1 . . . . . . 1 . . . . . . . . . . . . . . . . . . . . . . . . . . System Corruption 5 | . . 2 . . . . . . 3 . . . . . . . . . . . . . . . . . . . . . . . . . . Parts Lost 118 | . 2 1 4 . 2 1 6 1 . . . 4 . 10 1 . . . 10 4 1 2 . 2 2 2 1 2 . 7 16 27 . 7 3 Power 18 | . . . . . . 1 1 . . . . . . 1 1 . . . 2 1 . . . . . 2 . . . . 5 4 . . . Propulsion 10 | . . . . . . . . . . . . . . 2 . . . . 2 1 . 1 . . . . . . . . 2 1 . 1 . Utility 49 | . 1 . 1 . . . 5 1 . . . . . 3 . . . . 3 2 1 1 . 1 1 . 1 . . 4 5 14 . 4 1 Weapon 41 | . 1 1 3 . 2 . . . . . . 4 . 4 . . . . 3 . . . . 1 1 . . 2 . 3 4 8 . 2 2 Highest Loss Streak 11 | . 1 1 2 . 1 1 2 1 . . . 2 . 2 1 . . . 6 1 1 1 . 1 1 1 1 1 . 6 3 11 . 2 1 Average Slot Usage (%) 93 | . 99 99 99 100 99 99 99 100 100 97 100 99 90 86 92 93 93 93 94 92 93 93 94 94 89 89 89 89 90 89 88 82 89 84 74 Engine 4 | . 13 14 11 11 9 8 6 7 7 7 4 . . . . . . . 1 4 5 4 . 5 . . . . . . . . . . . Reactor 2 | . . . . . . . . . . . . . 4 6 4 . . . . . . . 5 5 8 9 5 5 8 10 8 6 7 8 7 Treads 18 | . 28 28 22 22 26 26 23 23 23 23 23 25 16 13 20 20 20 20 17 16 16 15 16 15 11 10 10 10 10 10 9 9 8 8 7 Device 14 | . 11 6 11 11 8 9 14 15 15 15 15 14 16 17 20 20 20 19 16 16 15 15 16 14 14 15 14 11 10 12 16 14 8 12 19 Storage 7 | . 14 14 11 11 9 9 7 7 7 7 7 6 6 6 6 6 6 6 5 5 5 5 5 5 5 5 5 5 5 5 4 5 11 12 11 Processor 8 | . . . . . . . 7 13 15 15 15 13 19 9 6 6 6 6 11 11 11 11 11 12 15 15 15 15 15 15 11 9 9 12 11 Hackware 6 | . . . . . 6 9 4 . . . . 4 . 5 6 6 6 6 9 11 11 11 11 15 15 15 15 15 15 15 13 12 12 8 2 Protection 6 | . 2 7 11 11 11 8 9 8 7 7 7 6 3 5 5 6 6 6 5 4 5 5 5 2 . . . 3 4 2 4 6 13 7 3 Energy Gun 1 | . 2 1 6 . 13 11 . . . . . . . . . . . . . . . . . . . . . . . . . . . . . Energy Cannon 1 | . 11 2 6 11 1 . . . . . . . . . . . . . . . . . . . . 1 . . . . . . . . . Ballistic Gun 11 | . 13 23 19 22 11 15 22 18 18 20 20 19 20 8 . . . . . . . . . . 18 18 20 19 20 19 16 10 . . . Ballistic Cannon 5 | . . . . . . . . . . . . . . 11 20 19 17 17 15 15 16 16 16 14 . . . . . . . 5 16 13 10 Naked Turns . | . . . . . . . . . . . . . . . . . . . . . . . . . . . . . . . . . . . . Heaviest Build 225 | 12 52 52 64 66 116 108 115 112 108 109 113 112 118 131 131 125 125 125 139 131 129 140 136 147 141 141 138 148 152 152 170 202 211 204 225 Greatest Support 160 | 40 40 40 43 43 63 69 69 69 69 69 69 92 140 140 126 126 126 126 126 126 126 126 125 135 145 145 150 160 160 160 160 150 150 150 150 Greatest Overweight (x) 3 | 3 1 1 1 1 2 1 1 1 1 1 1 1 1 1 1 1 . . 1 1 1 1 1 1 1 . . . . . 1 1 1 1 1 Average Overweight (x) . | . . 1 1 1 1 1 1 1 1 1 1 1 . . . . . . . . 1 . 1 1 . . . . . . . . 1 1 1 Largest Inventory Capacity 25 | 8 20 20 20 20 25 25 25 25 25 25 25 25 25 25 25 25 25 25 25 25 25 25 25 25 25 25 25 25 25 25 25 25 25 25 25 Average Capacity 24 | 7 14 20 20 20 24 25 25 25 25 25 25 25 25 25 25 25 25 25 25 25 25 25 25 25 25 25 25 25 25 25 25 25 25 25 25 Most Carried 25 | 2 20 20 20 20 25 25 25 25 25 25 25 25 25 25 25 25 25 24 25 25 24 25 23 25 25 25 25 25 25 25 25 25 25 25 25 Average Carried 23 | 1 11 19 19 19 23 24 24 24 25 24 25 24 24 24 23 24 23 23 23 24 23 24 23 24 24 24 24 24 24 24 22 23 24 24 22 Final Capacity 25 | 8 20 20 20 20 25 25 25 25 25 25 25 25 25 25 25 25 25 25 25 25 25 25 25 25 25 25 25 25 25 25 25 25 25 25 25 Final Carried 25 | 2 20 20 20 20 25 25 25 25 25 25 25 25 25 23 25 25 23 24 25 24 24 23 23 25 25 25 25 25 25 19 25 25 25 24 19 Class Distribution -------------------- 18% | Scavenger-Skirmisher 18% | Scavenger-Tank 15% | Skirmisher 10% | Mutant 10% | Hacker-Assassin 9% | Hacker-Skirmisher 5% | Scavenger-Gunner 4% | Tank Dominant Class ---------------- Mutant | -10/Materials Mutant | -10/Mines Scavenger-Tank | -9/Materials Scavenger-Tank | -9/Mines Scavenger-Tank | -8/Materials Tank | -8/Storage Scavenger-Skirmisher | -7/Factory Mutant | -7/Lower Caves Mutant | -7/Lower Caves Skirmisher | -7/Zion Skirmisher | -6/Proximity Caves Scavenger-Skirmisher | -6/Factory Scavenger-Gunner | -6/Waste Scavenger-Skirmisher | -6/Factory Skirmisher | -6/Lower Caves Skirmisher | -6/Lower Caves Skirmisher | -6/Data Miner Skirmisher | -5/Proximity Caves Hacker-Skirmisher | -5/Factory Hacker-Assassin | -5/Upper Caves Hacker-Assassin | -5/Upper Caves Hacker-Assassin | -5/Warlord Hacker-Assassin | -4/Proximity Caves Hacker-Assassin | -4/Factory Hacker-Skirmisher | -4/Waste Hacker-Skirmisher | -4/Factory Hacker-Skirmisher | -4/Extension Scavenger-Gunner | -4/Cetus Scavenger-Gunner | -4/Archives Scavenger-Skirmisher | -4/Hub_04(d) Scavenger-Skirmisher | -3/Research Scavenger-Gunner | -3/Quarantine Scavenger-Tank | -2/Research Scavenger-Skirmisher | -2/Testing Generator-Skirmisher | -1/Access Resources | -11 -10 -10 -9 -9 -8 -8 -7 -7 -7 -7 -6 -6 -6 -6 -6 -6 -6 -5 -5 -5 -5 -5 -4 -4 -4 -4 -4 -4 -4 -4 -3 -3 -2 -2 -1 ----------- Run | Scr Mat Min Mat Min Mat Sto Fac Low Low Zio Pro Fac Was Fac Low Low Dat Pro Fac Upp Upp War Pro Fac Was Fac Ext Cet Arc Hub Res Qua Res Tes Acc Matter Collected 37592 | 253 425 136 597 37 688 418 1257 413 289 104 158 788 616 2984 733 300 93 514 2269 646 204 295 20 854 564 727 902 965 495 1359 3418 3513 2408 7690 460 Remotely 14062 | . . . . . . . . . . . . . . 1260 314 136 . 210 1005 208 192 129 . 74 . 333 . 397 387 489 1269 1451 1753 4455 . Salvage Created 44330 | 67 810 261 1415 106 1904 1247 2124 456 285 . 280 1213 1510 2967 351 359 121 177 1684 526 120 161 200 581 73 844 1569 1177 492 2522 4874 2597 558 8595 2104 Parts 1840 | 2 39 9 77 6 114 53 118 20 11 . 17 71 22 91 10 10 3 11 63 9 3 9 . 16 4 29 69 55 20 91 255 132 23 312 66 Haulers Intercepted 36 | . 2 . 6 . 6 3 2 . . . . 1 . 3 . . . . 2 . . . . . . 1 . . . 1 1 2 1 2 3 Recyclers Shooed 38 | . 3 . 8 . 1 2 5 . . . . 4 . 6 . . . . 2 . . . . . . . 1 . . . 5 1 . . . Parts Field Recycled . | . . . . . . . . . . . . . . . . . . . . . . . . . . . . . . . . . . . . Retrieved Matter . | . . . . . . . . . . . . . . . . . . . . . . . . . . . . . . . . . . . . Parts Self-Destructed 150 | . . . . . . . . 25 10 1 12 . . . 10 17 . 11 . 3 3 58 . . . . . . . . . . . . . Prevented 17 | . . . . . . . . 1 . . . . . . . 5 . . . 4 . 7 . . . . . . . . . . . . . Kills | -11 -10 -10 -9 -9 -8 -8 -7 -7 -7 -7 -6 -6 -6 -6 -6 -6 -6 -5 -5 -5 -5 -5 -4 -4 -4 -4 -4 -4 -4 -4 -3 -3 -2 -2 -1 ------- Run | Scr Mat Min Mat Min Mat Sto Fac Low Low Zio Pro Fac Was Fac Low Low Dat Pro Fac Upp Upp War Pro Fac Was Fac Ext Cet Arc Hub Res Qua Res Tes Acc Combat Hostiles Destroyed 618 | . 13 7 18 3 34 14 30 11 6 . 8 15 6 57 14 12 2 9 34 12 4 4 . 16 . 12 12 18 4 22 61 35 9 100 16 Guns 274 | . 3 2 12 2 19 14 30 10 5 . 5 15 6 14 . . . . . . . . . . . 6 12 13 4 18 56 28 . . . Cannons 291 | . 6 3 5 1 6 . . . . . . . . 43 14 9 2 9 30 10 4 4 . 12 . . . . . . 1 7 9 100 16 AOE 50 | . 3 2 . . 8 . . 1 1 . 3 . . . . 3 . . 4 2 . . . 4 . 6 . 5 . 4 4 . . . . Classes Destroyed 27 | 1 4 . 2 1 3 . 1 . 1 . 1 . 1 4 . . . 1 . . . . . . . 1 . . . . . 1 1 4 . Worker 54 | . 1 . 3 . 1 1 8 . . . . 1 . 7 . . . . 5 . . . . . . 1 . . . 9 9 3 . 4 1 Builder 21 | . . . . . 1 . 1 . . . . 1 . 4 . . . . 1 . . . . . . . . . . 4 6 1 . 1 1 Hauler 36 | . 2 . 6 . 6 3 2 . . . . 1 . 3 . . . . 2 . . . . . . 1 . . . 1 1 2 1 2 3 Recycler 49 | 1 3 . 3 . 1 3 6 . . . . 2 . 5 . . . . 4 . . . . 3 . 1 4 . . 5 4 2 . 1 1 Carrier 8 | . . . . . . . . . . . . . . . . . . . . . . . . . . . . . . . . . . 5 3 Minesweeper 2 | . . . . . . . . . 1 . . . . . 1 . . . . . . . . . . . . . . . . . . . . Mechanic 4 | . . . . . . . . . . . . . . . . . . . . . . . . . . 2 . . . . . . . 1 1 Operator 18 | . . . . . 2 2 . . . . . 4 . 2 . . . . 1 . . . . . . . . . 2 1 . 2 . 2 . Watcher 38 | . . . 5 . 4 2 3 . . . . 1 . 3 . . . . 3 . . . . 1 . 1 1 2 . . 4 2 2 3 1 Swarmer 100 | . 3 5 2 . 8 . 10 6 3 . 8 4 . . 4 6 . 4 9 . . . . 5 . 3 1 5 . . 9 4 1 . . Saboteur 5 | . . . . . . . . . . . . . . 1 . . . . . . . . . . . . . . . . . . . 4 . Grunt 212 | . 10 2 7 . 15 10 6 4 1 . . 1 . 33 7 3 . 3 13 8 1 3 . . . 5 2 2 . 6 17 6 4 35 8 Brawler 18 | . . . . . . . . . . . . . . 4 1 2 . . . 1 . . . . . 1 . . . . 1 1 . 6 1 Duelist 16 | . . . . . . . . . . . . . . 4 . . . 1 . . . 1 . . . 1 . 1 . . 1 1 . 5 1 Protector 6 | . . . . . . . . . . . . . . 2 . . . . . . . . . . . . . . . . . 1 . 2 1 Researcher 6 | . . . . . . . . . . . . . . . . . . . . . . . . . . . . . . . . 2 . 4 . Sentry 71 | . . . 9 2 9 4 5 . 1 . . 2 . 4 . 1 . . 3 1 1 . . 2 . . 5 . 4 4 6 3 1 4 . Demolisher 1 | . . . . 1 . . . . . . . . . . . . . . . . . . . . . . . . . . . . . . . Specialist 3 | . . . . . . . . . . . . . . . . . . . . . . . . . . . . . . . . . . 3 . Hunter 52 | . . . . . 2 . . 1 1 . . 3 . 4 2 . . . 1 1 . . . 2 . . 2 2 . 12 2 . 1 14 2 Programmer 100 | . . . . . . . 9 . . . . 5 . 5 . . . . 8 . 2 . . 7 . 1 1 . . . 25 10 1 23 3 Q-Series 2 | . . . . . . . . . . . . . . . . . . . . . . . . . . . . . . . . . . 2 . Behemoth 2 | . . . . . . . . . . . . . . . . . . 1 . 1 . . . . . . . . . . . . . . . Compactor 6 | . . . . . . . . . . . . . 6 . . . . . . . . . . . . . . . . . . . . . . Cetus Guard 8 | . . . . . . . . . . . . . . . . . . . . . . . . . . . . 8 . . . . . . . Quarantine Guard 9 | . . . . . . . . . . . . . . . . . . . . . . . . . . . . . . . . 9 . . . Enhanced Grunt 2 | . . . . . . . . . . . . . . . . . 2 . . . . . . . . . . . . . . . . . . Investigator 1 | . . . . . . . . . . . . . . . . . . . . . . . . . . . . . . . . . . 1 . Striker 1 | . . . . . . . . . . . . . . . . . . . . . . . . . . . . . . . . . . 1 . Executioner 2 | . . . . . . . . . . . . . . . . . . . . . . . . . . . . . . . . . 1 1 . Packrat 1 | . . . . . . . . . . . . . . . 1 . . . . . . . . . . . . . . . . . . . . Samaritan 3 | . . . . . . . . . . . 2 . . . . . . . . . . . 1 . . . . . . . . . . . . Thug 2 | . . . . . . . . . . . . . . . . . . . . . . . . . 1 . 1 . . . . . . . . Butcher 1 | . . . . . . . . . . . . . . . . . . . . 1 . . . . . . . . . . . . . . . Martyr 1 | . . . . . . . . . . . . . . . . . . . . . . . . . . 1 . . . . . . . . . Best Kill Streak 23 | 1 4 3 4 2 8 5 5 4 4 . 4 4 3 7 4 7 2 4 12 5 4 4 1 6 . 16 4 5 3 13 12 6 4 23 18 Combat Bots Only 20 | . 3 3 3 2 7 3 4 4 4 . 4 4 3 6 4 7 2 4 7 5 4 4 . 5 . 11 3 5 1 5 7 4 4 20 6 Max Kills in Single Turn 7 | 1 3 1 2 1 4 2 2 2 1 . 3 2 1 2 1 2 1 1 4 2 1 1 1 3 1 4 2 3 1 7 3 2 2 4 3 Gunslinging 1 | . . . . . . . 1 1 . . 1 . . . . . . . . . . . . . . 1 . . . . 1 . . . . Exploded 4 | . 3 1 . . 4 . . 1 1 . 3 . . . . 2 . . 4 1 . . . 3 . 2 . 3 . 3 3 . . . . Melee . | . . . . . . . . . . . . . . . . . . . . . . . . . . . . . . . . . . . . Uniques/NPCs Destroyed 1 | . . 1 . . . . . . . . . . . . . . . . . . . . . . . . . . . . . . . . . YI-UF0 (-10/Mines) Combat | -11 -10 -10 -9 -9 -8 -8 -7 -7 -7 -7 -6 -6 -6 -6 -6 -6 -6 -5 -5 -5 -5 -5 -4 -4 -4 -4 -4 -4 -4 -4 -3 -3 -2 -2 -1 -------- Run | Scr Mat Min Mat Min Mat Sto Fac Low Low Zio Pro Fac Was Fac Low Low Dat Pro Fac Upp Upp War Pro Fac Was Fac Ext Cet Arc Hub Res Qua Res Tes Acc Damage Taken 40225 | . 562 218 936 143 1032 542 1529 389 307 . 169 1084 . 2647 767 39 . 439 1893 731 395 175 . 1398 97 590 537 735 397 2845 5840 8064 46 5139 540 Core 2183 | . 56 38 94 38 78 14 50 . 7 . 30 95 . 91 45 . . 29 59 61 81 9 . 153 . 38 78 16 56 58 261 421 . 205 22 Absorbed by Shields 34 | . . . . . . . . . . . . . . . . . . . . . . . . . . . . . . . . . . . 34 Reduced by Siege Mode 2121 | . . . . . . . . . . . . . . 322 38 . . 13 46 14 11 . . 17 . 26 6 54 30 315 415 546 12 256 . Core Remaining (%) 74 | 100 . 62 . 67 . 83 . . . . 87 . . . . . . 69 . . . . 79 . . . . . . 65 . 47 . 85 . Volleys Fired 1646 | 3 53 35 82 5 88 64 117 18 17 . 11 47 24 133 28 11 3 15 78 22 8 6 . 39 5 23 37 39 21 62 160 168 17 183 24 Largest 4 | 2 2 2 3 3 3 3 3 3 3 . 3 3 3 3 3 3 3 3 3 3 3 3 . 3 4 4 4 4 4 4 4 4 4 4 1 Hottest 171 | 60 80 80 139 114 145 147 75 75 75 . 75 84 84 159 159 159 159 159 159 159 159 159 . 159 140 140 140 140 138 140 171 161 40 120 100 Shots Fired 4513 | 6 105 52 233 13 251 192 341 49 38 . 29 133 72 396 85 27 9 45 199 60 25 18 . 95 20 56 149 139 83 225 529 473 68 274 24 Gun 2985 | 6 61 32 189 9 226 192 338 48 32 . 28 132 72 108 . . . . . . . . . . 20 44 149 134 83 220 510 352 . . . Cannon 1473 | . 43 15 44 4 20 . 3 . . . . . . 288 85 24 9 45 196 54 25 18 . 89 . 7 . . . . 17 121 68 274 24 Launcher 51 | . 1 5 . . 5 . . 1 6 . 1 . . . . 3 . . 2 6 . . . 4 . 5 . 5 . 5 2 . . . . Special 4 | . . . . . . . . . . . . 1 . . . . . . 1 . . . . 2 . . . . . . . . . . . Kinetic 4022 | 3 52 21 132 9 120 92 338 48 32 . 28 132 72 396 85 24 9 45 195 54 25 18 . 89 20 44 149 134 83 220 527 460 68 274 24 Thermal 425 | 3 52 15 101 4 126 100 3 . . . . . . . . . . . 1 . . . . . . 7 . . . . . 13 . . . Explosive 38 | . 1 5 . . 5 . . . . . 1 . . . . 3 . . 2 . . . . 4 . 5 . 5 . 5 2 . . . . Electromagnetic 24 | . . 11 . . . . . 1 6 . . . . . . . . . . 6 . . . . . . . . . . . . . . . Robot Hit Streak 83 | 2 12 6 22 4 16 12 14 25 10 . 9 18 16 46 13 24 6 41 23 28 13 8 . 22 9 22 35 36 19 49 34 83 12 53 10 Robot Miss Streak 12 | 1 3 2 4 2 3 3 10 1 1 . 2 6 3 9 8 3 4 7 8 7 2 4 . 5 1 2 2 1 2 2 4 2 2 12 8 Penetration Max 3 | . . . . . . . . . . . . . . . . . . . . . . . . . . 1 1 1 1 2 1 1 . 3 1 Secondary Targets 45 | . . . 2 . 1 3 4 4 1 . 3 1 . . . . . . . . . . . . . 4 1 5 . 3 9 4 . . . Max Gunslinging Chain 2 | . . . 1 . 1 1 1 2 1 . 1 1 . . . . . . . . . . . . . 2 1 1 . 1 1 1 . . . Shots Hit Robots 3463 | 3 71 27 163 7 168 104 212 38 25 . 20 110 67 349 77 22 9 40 189 51 22 17 9 92 18 38 119 118 69 167 386 376 46 214 20 Core Hits 2683 | 2 31 12 55 5 77 45 89 21 14 . 16 114 78 481 85 36 10 44 210 70 24 18 2 98 4 39 38 60 22 103 179 125 19 396 61 Critical Kills 211 | . 1 . . . . . 1 . . . . . . . . . . . . . . . . . 1 7 16 12 2 8 20 9 . 108 26 Critical Parts Destroyed 322 | . . . 2 . . . 2 . . . . . . . . . . . . . . . . . . 8 21 21 6 14 36 12 . 169 31 Critical Strikes 641 | . 1 . 5 . 5 10 3 . . . . . . . . . . . . . . . . . 4 15 40 40 13 24 59 32 5 328 57 Burn 18 | . . . 3 . 5 10 . . . . . . . . . . . . . . . . . . . . . . . . . . . . . Meltdown 1 | . 1 . . . . . . . . . . . . . . . . . . . . . . . . . . . . . . . . . . Destroy 603 | . . . 2 . . . 3 . . . . . . . . . . . . . . . . . 4 15 40 40 13 24 59 24 . 322 57 Blast 19 | . . . . . . . . . . . . . . . . . . . . . . . . . . . . . . . . 8 5 6 . Melee Attacks 153 | . . . . . . . . 14 17 . 19 2 . 2 . . 1 25 18 15 . 1 24 15 . . . . . . . . . . . Impact . | . . . . . . . . . . . . . . . . . . . . . . . . . . . . . . . . . . . . Slashing 118 | . . . . . . . . 14 17 . 19 2 . 2 . . . . 9 15 . 1 24 15 . . . . . . . . . . . Piercing 35 | . . . . . . . . . . . . . . . . . 1 25 9 . . . . . . . . . . . . . . . . Sneak Attacks 13 | . . . . . . . . . 1 . . . . . . . 1 . 5 1 . . 3 2 . . . . . . . . . . . Combat Hostiles . | . . . . . . . . . . . . . . . . . . . . . . . . . . . . . . . . . . . . Follow-up Attacks . | . . . . . . . . . . . . . . . . . . . . . . . . . . . . . . . . . . . . Damage Inflicted 91246 | 25 1080 545 2592 122 3376 2099 4022 701 673 . 607 2595 2151 9646 1949 867 311 1197 5496 2103 739 414 988 3263 161 1885 1168 2072 1312 6302 11918 11024 2238 5205 400 Guns 46573 | 25 323 160 1948 60 2689 2072 3948 645 346 . 365 2290 2151 2513 . . . . . . . . . . 161 337 1108 1408 1259 4271 11092 7402 . . . Cannons 34171 | . 594 158 609 62 306 . . . . . . . . 6899 1949 631 202 1197 4413 1841 739 414 . 2529 . . . . . . 164 3622 2238 5204 400 Explosions 7372 | . 138 200 . . 324 . . 56 184 . 242 253 . 34 . 236 . . 409 188 . . . 402 . 1548 . 664 . 2014 480 . . . . Melee 2236 | . . . . . . . . . 143 . . . . . . . 109 . 590 74 . . 988 332 . . . . . . . . . . . Ramming 894 | . 25 27 35 . 57 27 74 . . . . 52 . 200 . . . . 84 . . . . . . . 60 . 53 17 182 . . 1 . Kinetic 74972 | 14 235 74 1268 60 1149 732 3948 645 346 . 365 2290 2151 9412 1949 631 202 1197 4413 1841 739 414 . 2529 161 337 1108 1408 1259 4271 11256 10726 2238 5204 400 Thermal 6008 | 11 682 158 1289 62 1846 1340 . . . . . 253 . . . . . . 69 . . . . . . . . . . . . 298 . . . Explosive 5647 | . 138 200 . . 324 . . . . . 242 . . 34 . 236 . . 340 . . . . 402 . 1548 . 664 . 1039 480 . . . . Electromagnetic 1489 | . . 86 . . . . . 56 184 . . . . . . . . . . 188 . . . . . . . . . 975 . . . . . Impact . | . . . . . . . . . . . . . . . . . . . . . . . . . . . . . . . . . . . . Slashing 2127 | . . . . . . . . . 143 . . . . . . . . . 590 74 . . 988 332 . . . . . . . . . . . Piercing 109 | . . . . . . . . . . . . . . . . . 109 . . . . . . . . . . . . . . . . . . Highest Corruption 63 | . . 2 2 2 . 4 4 4 7 7 . . . 5 5 5 5 5 3 3 6 6 . 4 4 10 10 10 10 10 36 63 . 11 3 Average Corruption 10 | . . 2 1 2 . 3 3 4 5 7 . . . 4 5 5 5 5 2 3 5 6 . 3 4 8 10 10 10 10 16 56 . 6 2 Corruption Purged . | . . . . . . . . . . . . . . . . . . . . . . . . . . . . . . . . . . . . Effects 1126 | . . 7 15 16 . 20 63 37 36 2 . . . 59 37 21 6 39 28 39 16 3 . 20 10 49 56 18 17 27 131 298 . 52 4 Message Errors 262 | . . 2 5 7 . 5 22 13 10 1 . . . 15 9 7 . 11 7 14 5 1 . 7 4 15 14 5 4 3 19 48 . 7 2 Matter Fused 229 | . . . . . . 6 11 9 10 1 . . . 17 5 3 1 12 5 10 5 2 . 3 1 11 12 6 1 10 27 42 . 18 1 Heat Flow Errors 111 | . . 1 2 3 . 2 8 4 8 . . . . 5 5 2 1 1 4 6 3 . . 3 . 7 2 . 1 2 11 27 . 3 . Energy Discharges 115 | . . 1 4 4 . 4 8 4 1 . . . . 4 6 2 . 3 8 4 . . . 5 2 3 9 1 3 1 13 23 . 2 . Parts Rejected 15 | . . . . . . . 1 . 1 . . . . 1 2 . 1 . . . . . . . . . 2 . . 1 . 6 . . . Data Loss (minor) 128 | . . 3 3 2 . 3 9 7 5 . . . . 10 4 3 1 5 4 5 1 . . 2 3 9 4 1 2 4 12 18 . 7 1 Data Loss (major) 41 | . . . . . . . . . . . . . . 1 3 2 2 5 . . 1 . . . . 1 . 1 . . 5 15 . 5 . Misfires 38 | . . . . . . . . . 1 . . . . 6 2 1 . 1 . . 1 . . . . 1 2 1 2 . 4 12 . 4 . Alerts 9 | . . . . . . . . . . . . . . . . . . . . . . . . . . . 2 . . . 2 5 . . . Misdirections 80 | . . . . . . . . . . . . . . . . . . . . . . . . . . 1 8 2 1 2 11 52 . 3 . Weapon Failures 98 | . . . 1 . . . 4 . . . . . . . 1 1 . 1 . . . . . . . 1 1 1 3 4 27 50 . 3 . Overload Shots . | . . . . . . . . . . . . . . . . . . . . . . . . . . . . . . . . . . . . Overflow Damage 1489 | . . 60 8 . 7 . . . 83 . . 53 . 14 29 12 49 . 301 . 8 . 502 18 . . 18 24 10 32 2 50 108 101 . Projectiles 337 | . . . 8 . . . . . . . . . . 5 29 . . . 18 . 8 . . 10 . . . . . . . 50 108 101 . Explosions 242 | . . 60 . . 5 . . . 14 . . 53 . 9 . 12 . . 26 . . . . 5 . . . 24 . 32 2 . . . . Melee 910 | . . . . . 2 . . . 69 . . . . . . . 49 . 257 . . . 502 3 . . 18 . 10 . . . . . . Knockbacks 460 | . . . 1 . . . 1 . . . . . . 147 26 7 1 10 69 13 8 1 . 40 . . 1 . . . 4 4 7 108 12 Impact 7 | . . . 1 . . . 1 . . . . . . 1 . . . . 1 . . . . . . . 1 . . . 2 . . . . Kinetic 411 | . . . . . . . . . . . . . . 119 26 7 1 7 65 12 8 1 . 39 . . . . . . 1 3 5 106 11 Secondary 42 | . . . . . . . . . . . . . . 27 . . . 3 3 1 . . . 1 . . . . . . 1 1 2 2 1 Self-Inflicted Damage 352 | . . . . . 27 . . . 25 . . 129 . 42 . . . . . . . . . . . . . 40 . 89 . . . . . Shots 8 | . . . . . 2 . . . 1 . . 2 . 1 . . . . . . . . . . . . . 1 . 1 . . . . . Rammed 94 | . 8 6 7 . 4 5 13 . . . . 8 . 13 . . . . 5 . . . . . . . 3 . 5 . 16 . . 1 . Targets Rammed 102 | . 8 6 9 . 4 6 14 . . . . 8 . 14 . . . . 6 . . . . . . . 3 . 5 1 17 . . 1 . Kicked . | . . . . . . . . . . . . . . . . . . . . . . . . . . . . . . . . . . . . Crushed 8 | . . . 2 . . 1 1 . . . . . . 1 . . . . 1 . . . . . . . . . . 1 1 . . . . Highest Temperature 330 | 20 284 152 258 230 223 322 204 220 241 . 56 52 . 242 236 209 233 182 211 233 220 57 . 301 36 233 204 130 150 188 251 243 330 310 . Average Temperature 61 | 13 86 31 31 61 47 86 50 75 83 . 29 17 . 46 65 63 85 62 55 80 104 30 . 66 17 63 41 50 45 74 58 78 196 129 . Received Heat Transfer 5294 | . 312 27 309 9 423 243 180 117 12 . . 99 . 891 120 . . 51 396 198 108 9 . 36 . 121 69 9 99 207 710 287 . 225 27 Effects 3 | . . . . 1 . . . . . . . . . . . . 1 . . . . . . . . . . . . . . 1 . . . Energy Bleed 2 | . . . . . . . . . . . . . . . . . 1 . . . . . . . . . . . . . . 1 . . . Interference 1 | . . . . 1 . . . . . . . . . . . . . . . . . . . . . . . . . . . . . . . Siege Activations 120 | . . . . . . . . . . . . . . 17 4 1 . 2 6 3 1 . . 3 . 1 3 2 5 7 21 18 2 21 3 Total Turns 2099 | . . . . . . . . . . . . . . 316 58 13 . 42 74 57 21 . . 12 . 13 28 42 65 136 397 353 22 378 72 Longest Duration 99 | . . . . . . . . . . . . . . 53 23 13 . 23 26 28 21 . . 6 . 13 15 29 15 29 72 65 19 99 61 Robots Corrupted 1 | . . 1 . . . . . . . . . . . . . . . . . . . . . . . . . . . . . . . . . Combat Hostiles . | . . . . . . . . . . . . . . . . . . . . . . . . . . . . . . . . . . . . Parts Fried 6 | . . 1 . . . . . . . . . . . . . . . . . 1 . . . . . . . . . 4 . . . . . Impact Corruptions 5 | . . . . . 1 . . . . . . . . . . . . . . . . . . . . . 1 . 2 . . 1 . . . Robots Melted 3 | . 1 . 1 . 1 . . . . . . . . . . . . . . . . . . . . . . . . . . . . . . Combat Hostiles 3 | . 1 . 1 . 1 . . . . . . . . . . . . . . . . . . . . . . . . . . . . . . Parts Melted 24 | . . 1 8 . 6 7 . . . . . . . . . . . . . . . . . . . . . . . . 1 1 . . . Heat Transferred 12648 | 25 1458 333 3071 111 3774 3219 . . . . . 200 . . . . . . 50 . . . . . . . . . . . . 407 . . . Parts Sabotaged 2 | . . . . . . . . . . . . . . . . . . . . . . . . . . . . . . . . . . 2 . Parts Stolen . | . . . . . . . . . . . . . . . . . . . . . . . . . . . . . . . . . . . . Parts Stripped . | . . . . . . . . . . . . . . . . . . . . . . . . . . . . . . . . . . . . Power Chain Reactions . | . . . . . . . . . . . . . . . . . . . . . . . . . . . . . . . . . . . . Missiles Intercepted . | . . . . . . . . . . . . . . . . . . . . . . . . . . . . . . . . . . . . Alert | -11 -10 -10 -9 -9 -8 -8 -7 -7 -7 -7 -6 -6 -6 -6 -6 -6 -6 -5 -5 -5 -5 -5 -4 -4 -4 -4 -4 -4 -4 -4 -3 -3 -2 -2 -1 ------- Run | Scr Mat Min Mat Min Mat Sto Fac Low Low Zio Pro Fac Was Fac Low Low Dat Pro Fac Upp Upp War Pro Fac Was Fac Ext Cet Arc Hub Res Qua Res Tes Acc Peak Influence 2933 | 5 316 160 350 191 549 325 718 . . . . 233 59 1729 . . . . 656 . . . . 208 150 1089 473 484 304 966 1217 790 290 2933 2074 Initial 1759 | . 3 15 8 136 . 50 63 . . . . . 59 . . . . . 18 . . . . 2 46 . 473 65 134 106 507 684 197 78 1759 Average 372 | 2 122 47 160 50 212 159 257 . . . . 102 28 967 . . . . 242 . . . . 98 93 654 103 279 266 324 577 488 218 877 1858 Maximum Alert Level 5 | . 1 . 1 . 2 1 3 . . . . 1 . 5 . . . . 2 . . . . 1 . 3 2 2 1 3 4 3 1 5 5 Low Security (%) 48 | 100 90 100 70 100 43 63 58 . . . . 97 100 6 . . . . 43 . . . . 99 100 15 84 13 17 38 11 . 31 11 . Level 1 20 | . 9 . 29 . 44 36 13 . . . . 2 . 4 . . . . 36 . . . . . . 8 11 71 82 24 22 37 68 5 . Level 2 15 | . . . . . 11 . 19 . . . . . . 13 . . . . 20 . . . . . . 33 4 15 . 30 31 55 . 37 . Level 3 8 | . . . . . . . 8 . . . . . . 43 . . . . . . . . . . . 42 . . . 6 24 7 . 15 . Level 4 4 | . . . . . . . . . . . . . . 26 . . . . . . . . . . . . . . . . 10 . . 21 . Level 5 1 | . . . . . . . . . . . . . . 5 . . . . . . . . . . . . . . . . . . . . 63 High Security 1 | . . . . . . . . . . . . . . . . . . . . . . . . . . . . . . . . . . 9 36 Max Security . | . . . . . . . . . . . . . . . . . . . . . . . . . . . . . . . . . . . . Squads Dispatched 142 | . 3 . 1 . 3 3 12 . . . . 7 . 21 . 1 . . 12 . . . . 7 . 4 . . . 8 12 9 1 27 11 Investigation 12 | . 2 . 1 . . . 1 . . . . . . 2 . . . . 3 . . . . . . . . . . 2 . . . 1 . Extermination 50 | . . . . . . . 9 . . . . 4 . 6 . . . . 4 . . . . 5 . 3 . . . . 8 4 . 7 . Reinforcement 38 | . 1 . . . 3 2 2 . . . . 3 . 5 . . . . 4 . . . . 2 . . . . . 4 1 3 1 6 1 Assault 37 | . . . . . . . . . . . . . . 7 . 1 . . . . . . . . . 1 . . . . 3 2 . 13 10 Garrison 5 | . . . . . . 1 . . . . . . . 1 . . . . 1 . . . . . . . . . . 2 . . . . . Intercept . | . . . . . . . . . . . . . . . . . . . . . . . . . . . . . . . . . . . . Construction Impeded 8 | . . . . . 1 . 1 . . . . . . 1 . . . . 2 . . . . 1 . . . . . 1 . . . 1 . Haulers Reinforced 7 | . . . . . . . . . . . . 1 . . . . . . 1 . . . . . . . . . . 2 1 . 1 . 1 Cargo Convoy Interrupts . | . . . . . . . . . . . . . . . . . . . . . . . . . . . . . . . . . . . . Stealth | -11 -10 -10 -9 -9 -8 -8 -7 -7 -7 -7 -6 -6 -6 -6 -6 -6 -6 -5 -5 -5 -5 -5 -4 -4 -4 -4 -4 -4 -4 -4 -3 -3 -2 -2 -1 --------- Run | Scr Mat Min Mat Min Mat Sto Fac Low Low Zio Pro Fac Was Fac Low Low Dat Pro Fac Upp Upp War Pro Fac Was Fac Ext Cet Arc Hub Res Qua Res Tes Acc Distress Signals 33 | . 1 . 3 . 3 1 3 . . . . . . 3 . . . . 1 . . 1 . . . 2 2 3 . 4 1 2 . 2 1 Communications Jammed 56 | . . . . . . . . . . . . . . . . . . . . . . . . . . . . . . . 27 29 . . . Distress Signals 56 | . . . . . . . . . . . . . . . . . . . . . . . . . . . . . . . 27 29 . . . Times Spotted 879 | . 37 8 36 4 49 32 46 10 6 . 8 23 6 86 15 9 2 9 37 12 7 28 . 15 4 13 20 19 18 25 75 49 15 123 33 Peak Tracking Total 21 | . 6 3 4 2 5 4 4 4 4 . 4 4 2 8 4 8 1 4 5 5 4 8 . 5 4 7 5 5 1 5 8 5 6 21 10 Tactical Retreats 40 | . 1 3 6 . 3 1 2 . 1 . . . . 2 1 1 . . 1 . 4 1 . . . . . . . 1 3 1 . 8 . Traps | -11 -10 -10 -9 -9 -8 -8 -7 -7 -7 -7 -6 -6 -6 -6 -6 -6 -6 -5 -5 -5 -5 -5 -4 -4 -4 -4 -4 -4 -4 -4 -3 -3 -2 -2 -1 ------- Run | Scr Mat Min Mat Min Mat Sto Fac Low Low Zio Pro Fac Was Fac Low Low Dat Pro Fac Upp Upp War Pro Fac Was Fac Ext Cet Arc Hub Res Qua Res Tes Acc Traps Triggered 28 | . 4 . 2 . 2 3 . . . . . 4 . 2 . . . . 1 . . . . 1 . 1 . . . 2 1 . . 5 . Indirectly 2 | . . . . . . . . . . . . . . . . . . . . . . . . . . . . . . 2 . . . . . Trap Hack Attempts . | . . . . . . . . . . . . . . . . . . . . . . . . . . . . . . . . . . . . Triggered . | . . . . . . . . . . . . . . . . . . . . . . . . . . . . . . . . . . . . Disarmed 6 | . . . . . . 6 . . . . . . . . . . . . . . . . . . . . . . . . . . . . . Reprogrammed . | . . . . . . . . . . . . . . . . . . . . . . . . . . . . . . . . . . . . Reused 1 | . . . . . . . . . . . . . . . . . 1 . . . . . . . . . . . . . . . . . . Traps Extracted . | . . . . . . . . . . . . . . . . . . . . . . . . . . . . . . . . . . . . Installed 4 | . . . . . . . . . . . . . . . . . 4 . . . . . . . . . . . . . . . . . . Triggered 13 | . . . . . . . . . . . . . . . 2 1 . . . . . 10 . . . . . . . . . . . . . Machines | -11 -10 -10 -9 -9 -8 -8 -7 -7 -7 -7 -6 -6 -6 -6 -6 -6 -6 -5 -5 -5 -5 -5 -4 -4 -4 -4 -4 -4 -4 -4 -3 -3 -2 -2 -1 ---------- Run | Scr Mat Min Mat Min Mat Sto Fac Low Low Zio Pro Fac Was Fac Low Low Dat Pro Fac Upp Upp War Pro Fac Was Fac Ext Cet Arc Hub Res Qua Res Tes Acc Machines Disabled 85 | . 1 . 1 . 3 7 1 . . . . 5 . 3 . . . . 3 . . . . 5 . 24 . . 2 6 3 5 . 16 . Max in Single Turn 3 | . 1 . 1 . 1 1 1 . . . . 2 . 1 . . . . 2 . . . . 3 . . . . 1 2 1 1 . 1 . Garrison Access 7 | . . . . . 1 1 1 . . . . . . 2 . . . . 1 . . . . . . . . . . 1 . . . . . Network Hub 1 | . . . . . . . . . . . . . . . . . . . . . . . . . . . . . . 1 . . . . . Energy Cycler 1 | . . . . . . . . . . . . . . . . . . . . . . . . . . . 1 . . . . . . . . Machines Sabotaged . | . . . . . . . . . . . . . . . . . . . . . . . . . . . . . . . . . . . . Garrisons Compromised . | . . . . . . . . . . . . . . . . . . . . . . . . . . . . . . . . . . . . Overloaded Fab Kills . | . . . . . . . . . . . . . . . . . . . . . . . . . . . . . . . . . . . . Fab Network Shutdowns 3 | . . . . . . . 1 . . . . . . 1 . . . . . . . . . . . . . . . . . . . 1 . Hacking | -11 -10 -10 -9 -9 -8 -8 -7 -7 -7 -7 -6 -6 -6 -6 -6 -6 -6 -5 -5 -5 -5 -5 -4 -4 -4 -4 -4 -4 -4 -4 -3 -3 -2 -2 -1 --------- Run | Scr Mat Min Mat Min Mat Sto Fac Low Low Zio Pro Fac Was Fac Low Low Dat Pro Fac Upp Upp War Pro Fac Was Fac Ext Cet Arc Hub Res Qua Res Tes Acc Machines Accessed 127 | . 8 2 10 . 11 10 11 . 2 . . 4 . 13 . 2 4 . 10 . 1 . . 6 . 2 2 1 . 5 8 7 1 6 1 Terminals 88 | . 7 2 7 . 9 8 6 . 1 . . 3 . 8 . . . . 6 . . . . 4 . 2 2 1 . 4 4 7 1 5 1 Fabricators 9 | . . . . . . . 3 . . . . . . 1 . . . . 2 . . . . 1 . . . . . . 1 . . 1 . Repair Stations 10 | . . . . . 1 1 1 . . . . 1 . 2 . . . . 1 . . . . 1 . . . . . . 2 . . . . Recycling Units 2 | . 1 . 1 . . . . . . . . . . . . . . . . . . . . . . . . . . . . . . . . Scanalyzers 4 | . . . 2 . . . . . . . . . . 1 . . . . . . . . . . . . . . . . 1 . . . . Garrison Access 6 | . . . . . 1 1 1 . . . . . . 1 . . . . 1 . . . . . . . . . . 1 . . . . . Total Hacks 441 | . 25 6 30 . 42 33 31 . 2 . . 13 . 36 . 9 30 . 30 . 1 . . 14 . 5 11 3 . 16 32 32 7 30 3 Successful 283 | . 17 3 22 . 25 21 18 . 2 . . 9 . 19 . 9 30 . 18 . 1 . . 5 . 3 7 3 . 10 22 14 3 21 1 Failed 158 | . 8 3 8 . 17 12 13 . . . . 4 . 17 . . . . 12 . . . . 9 . 2 4 . . 6 10 18 4 9 2 Catastrophic 16 | . . . . . 3 . 2 . . . . . . 3 . . . . 1 . . . . 1 . . 1 . . . . 3 1 1 . Database Lockouts . | . . . . . . . . . . . . . . . . . . . . . . . . . . . . . . . . . . . . Manual 225 | . 21 3 23 . 32 22 11 . . . . 6 . 18 . . . . 12 . . 1 . 6 . 2 9 . . 10 11 14 6 16 2 Terminals 305 | . 24 6 25 . 35 27 18 . 1 . . 7 . 24 . . . . 21 . . . . 10 . 5 11 3 . 14 16 32 7 16 3 Fabricators 40 | . . . . . . . 7 . . . . . . 2 . . . . 6 . . . . 2 . . . . . . 9 . . 14 . Repair Stations 35 | . . . . . 6 5 5 . . . . 6 . 4 . . . . 2 . . . . 2 . . . . . . 5 . . . . Recycling Units 2 | . 1 . 1 . . . . . . . . . . . . . . . . . . . . . . . . . . . . . . . . Scanalyzers 10 | . . . 4 . . . . . . . . . . 4 . . . . . . . . . . . . . . . . 2 . . . . Garrison Access 8 | . . . . . 1 1 1 . . . . . . 2 . . . . 1 . . . . . . . . . . 2 . . . . . Terminal Hacks 153 | . 8 1 10 . 12 12 6 . 2 . . 2 . 6 . 9 30 . 8 . 1 . . 2 . 2 5 3 . 7 6 10 2 8 1 Record 23 | . . . . . . . . . 1 . . . . . . 8 11 . . . . . . . . . . 3 . . . . . . . Part Schematic 12 | . . . . . . . . . . . . . . . . . 9 . . . . . . . . . . . . . . 2 . 1 . Robot Schematic 7 | . . . . . . . . . . . . . . . . . 7 . . . . . . . . . . . . . . . . . . Prototype ID Bank 3 | . . . . . . . . . . . . . . . . . 3 . . . . . . . . . . . . . . . . . . Open Door 6 | . . . . . . 2 . . 1 . . . . . . 1 . . . . 1 . . . . . . . . . . . . 1 . Level Access Points 2 | . . . . . . . . . . . . . . . . . . . . . . . . . . . . . . 1 . . . 1 . Branch Access Points 8 | . . . . . 1 . 1 . . . . 1 . . . . . . 1 . . . . . . 1 . . . . 1 . 1 . 1 Terminal Index 13 | . 1 . 1 . 1 2 1 . . . . 1 . 1 . . . . 1 . . . . . . . 1 . . 1 1 . . 1 . Fabricator Index 2 | . . . . . . . 1 . . . . . . . . . . . . . . . . 1 . . . . . . . . . . . Scanalyzer Index 3 | . . . 1 . . . . . . . . . . 1 . . . . 1 . . . . . . . . . . . . . . . . Alert Level 24 | . 1 . 3 . 4 2 1 . . . . . . 2 . . . . 2 . . . . . . 1 1 . . 1 1 2 1 2 . Unreport Threat 19 | . . . . . 3 2 1 . . . . . . 2 . . . . 2 . . . . . . . 3 . . . 2 4 . . . Locate Traps 1 | . . . 1 . . . . . . . . . . . . . . . . . . . . . . . . . . . . . . . . Disarm Traps 1 | . . . . . . 1 . . . . . . . . . . . . . . . . . . . . . . . . . . . . . Assault Status 1 | . 1 . . . . . . . . . . . . . . . . . . . . . . . . . . . . . . . . . . Recall Extermination 1 | . . . . . . . . . . . . . . . . . . . . . . . . 1 . . . . . . . . . . . Recall Assault 1 | . . . . . . . . . . . . . . . . . . . . . . . . . . . . . . . . 1 . . . Hauler Manifests 7 | . 1 . 1 . 1 1 . . . . . . . . . . . . . . . . . . . . . . . 1 1 . . 1 . Zone Layout 19 | . 4 1 3 . 2 2 1 . . . . . . . . . . . 1 . . . . . . . . . . 3 . 1 . 1 . Fabricator Hacks 21 | . . . . . . . 3 . . . . . . 2 . . . . 4 . . . . . . . . . . . 5 . . 7 . Load Schematic 10 | . . . . . . . 2 . . . . . . 1 . . . . 2 . . . . . . . . . . . 2 . . 3 . Build 11 | . . . . . . . 1 . . . . . . 1 . . . . 2 . . . . . . . . . . . 3 . . 4 . Repair Station Hacks 30 | . . . . . 6 4 4 . . . . 5 . 3 . . . . 2 . . . . 2 . . . . . . 4 . . . . Scan Component 16 | . . . . . 3 2 2 . . . . 3 . 2 . . . . 1 . . . . 1 . . . . . . 2 . . . . Repair 14 | . . . . . 3 2 2 . . . . 2 . 1 . . . . 1 . . . . 1 . . . . . . 2 . . . . Recycling Unit Hacks . | . . . . . . . . . . . . . . . . . . . . . . . . . . . . . . . . . . . . Scanalyzer 9 | . . . 4 . . . . . . . . . . 3 . . . . . . . . . . . . . . . . 2 . . . . Insert Component 4 | . . . 2 . . . . . . . . . . 1 . . . . . . . . . . . . . . . . 1 . . . . Analyze 5 | . . . 2 . . . . . . . . . . 2 . . . . . . . . . . . . . . . . 1 . . . . Garrison Access Hacks 6 | . . . . . 1 1 1 . . . . . . 1 . . . . 1 . . . . . . . . . . 1 . . . . . Seal Access 6 | . . . . . 1 1 1 . . . . . . 1 . . . . 1 . . . . . . . . . . 1 . . . . . Unauthorized Hacks 64 | . 9 2 8 . 6 4 4 . . . . 2 . 4 . . . . 3 . . . . 1 . 1 2 . . 2 5 4 1 6 . Terminals 56 | . 8 2 7 . 6 4 4 . . . . 2 . 4 . . . . 3 . . . . 1 . 1 2 . . 2 2 4 1 3 . Track 2 | . 1 1 . . . . . . . . . . . . . . . . . . . . . . . . . . . . . . . . . Assimilate 2 | . . . . . . . 1 . . . . . . . . . . . . . . . . . . . 1 . . . . . . . . Botnet 51 | . 6 1 7 . 6 4 3 . . . . 2 . 4 . . . . 3 . . . . 1 . 1 1 . . 2 2 4 1 3 . Operators 1 | . 1 . . . . . . . . . . . . . . . . . . . . . . . . . . . . . . . . . . Fabricators 6 | . . . . . . . . . . . . . . . . . . . . . . . . . . . . . . . 3 . . 3 . Report 2 | . . . . . . . . . . . . . . . . . . . . . . . . . . . . . . . 1 . . 1 . Prioritize 2 | . . . . . . . . . . . . . . . . . . . . . . . . . . . . . . . 1 . . 1 . Siphon 2 | . . . . . . . . . . . . . . . . . . . . . . . . . . . . . . . 1 . . 1 . Repair Stations . | . . . . . . . . . . . . . . . . . . . . . . . . . . . . . . . . . . . . Recycling Units 2 | . 1 . 1 . . . . . . . . . . . . . . . . . . . . . . . . . . . . . . . . Tunnel 2 | . 1 . 1 . . . . . . . . . . . . . . . . . . . . . . . . . . . . . . . . Scanalyzers . | . . . . . . . . . . . . . . . . . . . . . . . . . . . . . . . . . . . . Garrison Access . | . . . . . . . . . . . . . . . . . . . . . . . . . . . . . . . . . . . . Data Cores Recovered 3 | . . . . . . . . . . . . 1 . . . . . . 1 . . . . . . . . . . . . 1 . . . Used 1 | . . . . . . . . . . . . 1 . . . . . . . . . . . . . . . . . . . . . . . Hacking Detections 100 | . 7 2 6 . 9 7 10 . . . . 4 . 12 . . . . 9 . . . . 5 . 2 2 1 . 5 6 7 1 4 1 Full Trace Events 6 | . . . . . . . 1 . . . . . . 2 . . . . 3 . . . . . . . . . . . . . . . . Feedback Events . | . . . . . . . . . . . . . . . . . . . . . . . . . . . . . . . . . . . . Feedback Blocked . | . . . . . . . . . . . . . . . . . . . . . . . . . . . . . . . . . . . . Robot Schematics Acquired 7 | . . . . . . . . . . . . . . . . . 7 . . . . . . . . . . . . . . . . . . Robots Built . | . . . . . . . . . . . . . . . . . . . . . . . . . . . . . . . . . . . . Matter . | . . . . . . . . . . . . . . . . . . . . . . . . . . . . . . . . . . . . Time . | . . . . . . . . . . . . . . . . . . . . . . . . . . . . . . . . . . . . Total Robot Build Rating . | . . . . . . . . . . . . . . . . . . . . . . . . . . . . . . . . . . . . Part Schematics Acquired 15 | . . . 1 . . . . . . . . . . 1 . . 9 . . . . . . . . . . . . . 1 2 . 1 . Parts Built 12 | . . . . . . . 1 . . . . . . 1 . . . . 2 . . . . . . . . . . . 4 . . 4 . Matter 3198 | . . . . . . . 384 . . . . . . 384 . . . . 702 . . . . . . . . . . . 864 . . 864 . Time 1232 | . . . . . . . 204 . . . . . . 102 . . . . 186 . . . . . . . . . . . 370 . . 370 . Total Part Build Rating 94 | . . . . . . . 8 . . . . . . 8 . . . . 14 . . . . . . . . . . . 32 . . 32 . Parts Repaired 14 | . . . . . 3 2 2 . . . . 2 . 1 . . . . 1 . . . . 1 . . . . . . 2 . . . . Time 572 | . . . . . 120 70 82 . . . . 64 . 34 . . . . 31 . . . . 68 . . . . . . 103 . . . . Parts Recycled . | . . . . . . . . . . . . . . . . . . . . . . . . . . . . . . . . . . . . Recycled Matter . | . . . . . . . . . . . . . . . . . . . . . . . . . . . . . . . . . . . . Retrieved Matter . | . . . . . . . . . . . . . . . . . . . . . . . . . . . . . . . . . . . . Retrieved Components . | . . . . . . . . . . . . . . . . . . . . . . . . . . . . . . . . . . . . Parts Scanalyzed 3 | . . . 1 . . . . . . . . . . 1 . . . . . . . . . . . . . . . . 1 . . . . Part Schematics Acquired 3 | . . . 1 . . . . . . . . . . 1 . . . . . . . . . . . . . . . . 1 . . . . Parts Damaged . | . . . . . . . . . . . . . . . . . . . . . . . . . . . . . . . . . . . . Bothacking | -11 -10 -10 -9 -9 -8 -8 -7 -7 -7 -7 -6 -6 -6 -6 -6 -6 -6 -5 -5 -5 -5 -5 -4 -4 -4 -4 -4 -4 -4 -4 -3 -3 -2 -2 -1 ------------ Run | Scr Mat Min Mat Min Mat Sto Fac Low Low Zio Pro Fac Was Fac Low Low Dat Pro Fac Upp Upp War Pro Fac Was Fac Ext Cet Arc Hub Res Qua Res Tes Acc Used RIF Installer . | . . . . . . . . . . . . . . . . . . . . . . . . . . . . . . . . . . . . Robots Hacked 3 | . . . . . . . . . . . . 1 . . . . . . . . . . . 2 . . . . . . . . . . . Non-combat 3 | . . . . . . . . . . . . 1 . . . . . . . . . . . 2 . . . . . . . . . . . Combat . | . . . . . . . . . . . . . . . . . . . . . . . . . . . . . . . . . . . . Robot Hacks Applied 3 | . . . . . . . . . . . . 1 . . . . . . . . . . . 2 . . . . . . . . . . . no_distress 1 | . . . . . . . . . . . . . . . . . . . . . . . . 1 . . . . . . . . . . . find_chute 2 | . . . . . . . . . . . . 1 . . . . . . . . . . . 1 . . . . . . . . . . . Relay Couplers Released 17 | . . . . . . . . . . . . . . 1 . . . . . . . . . . . . . . . . 4 . . 12 . Machine Destruction 1 | . . . . . . . . . . . . . . 1 . . . . . . . . . . . . . . . . . . . . . Programmers 16 | . . . . . . . . . . . . . . . . . . . . . . . . . . . . . . . 4 . . 12 . Robots Rewired 16 | . . . . . . . 1 . . . . . . . . 2 . . . . . . . . . . 13 . . . . . . . . Allies Hacked 4 | . . . . . . . 1 . . . . . . . . . . . . . . . . . . 3 . . . . . . . . . Hacks Repelled . | . . . . . . . . . . . . . . . . . . . . . . . . . . . . . . . . . . . . Allies | -11 -10 -10 -9 -9 -8 -8 -7 -7 -7 -7 -6 -6 -6 -6 -6 -6 -6 -5 -5 -5 -5 -5 -4 -4 -4 -4 -4 -4 -4 -4 -3 -3 -2 -2 -1 -------- Run | Scr Mat Min Mat Min Mat Sto Fac Low Low Zio Pro Fac Was Fac Low Low Dat Pro Fac Upp Upp War Pro Fac Was Fac Ext Cet Arc Hub Res Qua Res Tes Acc Total Allies 77 | . . 3 . 1 . 10 2 . . . . . 19 . . 2 . . . . . . . . 20 3 17 . . . . . . . . Largest Group 21 | . . 3 3 1 . 10 2 . . . . . 19 19 . 2 2 1 . . . . . . 19 21 8 7 . . . . . . . Highest-Rated Group 803 | . . 40 40 31 . 173 58 . . . . . 714 714 . 58 58 29 . . . . . . 696 803 330 286 . . . . . . . Highest-Rated Ally 50 | . . 16 16 31 . 29 32 . . . . . 50 50 . 29 29 29 . . . . . . 50 50 49 49 . . . . . . . Total Orders 2 | . . 2 . . . . . . . . . . . . . . . . . . . . . . . . . . . . . . . . . STAY 1 | . . 1 . . . . . . . . . . . . . . . . . . . . . . . . . . . . . . . . . FOLLOW 1 | . . 1 . . . . . . . . . . . . . . . . . . . . . . . . . . . . . . . . . Ally Attacks 601 | . . 2 53 4 . 45 6 . . . . . . 143 . 16 14 2 . . . . . . 113 74 75 54 . . . . . . . Total Damage 15124 | . . 11 545 20 . 596 113 . . . . . . 2997 . 249 118 18 . . . . . . 3193 4115 1918 1231 . . . . . . . Kills 105 | . . 1 10 1 . 9 2 . . . . . . 24 . . 1 . . . . . . . 6 40 8 3 . . . . . . . Allies Corrupted 4 | . . . . . . 1 1 . . . . . . . . . . . . . . . . . . 2 . . . . . . . . . Allies Melted 1 | . . . . . . . . . . . . . . . . . . . . . . 1 . . . . . . . . . . . . . Intel | -11 -10 -10 -9 -9 -8 -8 -7 -7 -7 -7 -6 -6 -6 -6 -6 -6 -6 -5 -5 -5 -5 -5 -4 -4 -4 -4 -4 -4 -4 -4 -3 -3 -2 -2 -1 ------- Run | Scr Mat Min Mat Min Mat Sto Fac Low Low Zio Pro Fac Was Fac Low Low Dat Pro Fac Upp Upp War Pro Fac Was Fac Ext Cet Arc Hub Res Qua Res Tes Acc Robot Analysis Total . | . . . . . . . . . . . . . . . . . . . . . . . . . . . . . . . . . . . . Derelict Logs Recovered 17 | . . 1 . 2 . . . 1 . 1 3 . . . 2 2 . 2 . 1 2 . . . . . . . . . . . . . . Drone Launches . | . . . . . . . . . . . . . . . . . . . . . . . . . . . . . . . . . . . . Drone Recoveries . | . . . . . . . . . . . . . . . . . . . . . . . . . . . . . . . . . . . . Exploration | -11 -10 -10 -9 -9 -8 -8 -7 -7 -7 -7 -6 -6 -6 -6 -6 -6 -6 -5 -5 -5 -5 -5 -4 -4 -4 -4 -4 -4 -4 -4 -3 -3 -2 -2 -1 ------------- Run | Scr Mat Min Mat Min Mat Sto Fac Low Low Zio Pro Fac Was Fac Low Low Dat Pro Fac Upp Upp War Pro Fac Was Fac Ext Cet Arc Hub Res Qua Res Tes Acc Turns Passed 62686 | 72 1704 1697 3918 1586 3201 1896 4208 1702 1690 2404 1566 2022 830 3695 1501 765 246 1486 3405 2152 590 983 1163 2147 473 1355 1278 477 383 593 3396 3427 833 3090 752 Spaces Moved 22585 | 43 683 597 1334 543 1012 560 1297 589 605 921 544 592 392 1571 578 425 136 822 1559 758 216 321 389 695 269 454 648 203 149 215 1050 984 274 910 247 Core 18 | 18 . . . . . . . . . . . . . . . . . . . . . . . . . . . . . . . . . . . Treads 22567 | 25 683 597 1334 543 1012 560 1297 589 605 921 544 592 392 1571 578 425 136 822 1559 758 216 321 389 695 269 454 648 203 149 215 1050 984 274 910 247 Legs . | . . . . . . . . . . . . . . . . . . . . . . . . . . . . . . . . . . . . Wheels . | . . . . . . . . . . . . . . . . . . . . . . . . . . . . . . . . . . . . Hover . | . . . . . . . . . . . . . . . . . . . . . . . . . . . . . . . . . . . . Flight . | . . . . . . . . . . . . . . . . . . . . . . . . . . . . . . . . . . . . Fastest Speed 50 | 50 160 260 260 260 260 260 260 260 260 260 260 260 160 152 155 155 155 155 155 160 260 160 263 250 150 160 160 160 160 160 160 165 252 252 252 Average Speed 225 | 122 210 260 260 260 260 260 260 260 260 260 260 260 173 162 227 155 155 155 169 246 260 260 263 250 157 160 160 160 160 160 223 262 264 252 252 Slowest Speed 360 | 200 260 260 260 260 360 260 260 260 260 260 260 260 260 260 255 252 155 155 265 260 260 263 263 263 250 160 160 160 160 160 265 265 265 252 252 Overloaded Moves . | . . . . . . . . . . . . . . . . . . . . . . . . . . . . . . . . . . . . Propulsion Burnouts . | . . . . . . . . . . . . . . . . . . . . . . . . . . . . . . . . . . . . Robots Hopped . | . . . . . . . . . . . . . . . . . . . . . . . . . . . . . . . . . . . . Cave-ins Triggered . | . . . . . . . . . . . . . . . . . . . . . . . . . . . . . . . . . . . . Teleports 4 | . . . . . . . . . . . . . . . . . . . . . . . . . . . . . . . . . . . 4 Exploration Rate (%) 59 | 5 89 88 98 97 89 88 39 68 66 83 74 17 95 33 73 59 77 61 33 72 46 48 49 17 89 12 86 68 75 20 28 91 16 76 8 Regions Visited 35 Branch Regions 21 Pre-discovered Areas 9 | . 1 . 1 1 . . . . . 2 1 . . . 1 1 1 . . . . . . . . . . . . . . . . . . Known Exits Taken 24 | . . . . . 1 . 1 1 1 1 1 . . 1 1 1 1 1 1 1 1 1 1 . . 1 1 1 1 1 1 . 1 1 . Unknown Exits Taken 7 | 1 1 1 1 1 . 1 . . . . . . . . . . . . . . . . . . . . . . . . . 1 . . . Scrap Searched 22 | . . 2 . 1 . . . 2 3 2 3 . . . 2 2 . 2 . 2 . . 1 . . . . . . . . . . . . Spaces Dug 177 | . . . . . 9 . 1 14 14 . 36 1 . . . . . 22 10 14 . 1 15 7 . 2 . . 2 . 4 10 . 15 . Terrain Destroyed 792 | . 3 51 . . 46 . 1 14 14 . 36 49 . 19 . 31 . 22 34 14 . 1 15 7 . 8 . 75 12 226 38 32 10 33 1 Melee 116 | . . . . . . . . 14 14 . 18 1 . . . . . 22 10 14 . 1 15 7 . . . . . . . . . . . Projectile 160 | . . . . . . . 1 . . . . . . . . . . . . . . . . . . 2 . 5 12 41 23 32 10 33 1 AOE 516 | . 3 51 . . 46 . . . . . 18 48 . 19 . 31 . . 24 . . . . . . 6 . 70 . 185 15 . . . . Terrain Rammed . | . . . . . . . . . . . . . . . . . . . . . . . . . . . . . . . . . . . . Walls Destroyed . | . . . . . . . . . . . . . . . . . . . . . . . . . . . . . . . . . . . . Machines Disabled . | . . . . . . . . . . . . . . . . . . . . . . . . . . . . . . . . . . . . Actions | -11 -10 -10 -9 -9 -8 -8 -7 -7 -7 -7 -6 -6 -6 -6 -6 -6 -6 -5 -5 -5 -5 -5 -4 -4 -4 -4 -4 -4 -4 -4 -3 -3 -2 -2 -1 --------- Run | Scr Mat Min Mat Min Mat Sto Fac Low Low Zio Pro Fac Was Fac Low Low Dat Pro Fac Upp Upp War Pro Fac Was Fac Ext Cet Arc Hub Res Qua Res Tes Acc Total 31417 | 54 848 685 1606 710 1388 891 1993 719 680 933 657 983 501 2451 712 513 164 953 2158 982 233 458 494 1029 308 1057 827 297 253 365 1758 1574 352 1480 351 Wait 5607 | 1 52 35 105 156 212 210 495 81 27 . 75 285 49 655 93 46 12 79 408 170 6 91 82 225 18 552 91 24 63 68 414 311 29 316 71 Move 22552 | 42 682 596 1333 542 1011 559 1296 588 604 920 543 592 391 1570 577 424 135 821 1558 757 215 320 388 695 268 453 647 202 148 214 1049 983 273 909 247 Hop . | . . . . . . . . . . . . . . . . . . . . . . . . . . . . . . . . . . . . Pick Up 299 | 2 25 3 21 3 23 15 22 2 1 2 1 10 6 18 4 1 2 2 18 3 1 10 . 13 2 5 4 5 1 1 32 27 4 9 1 Fast Attach 175 | 6 5 1 4 . 9 7 4 . 1 3 1 4 9 6 2 2 1 . 4 3 . 6 . 7 4 6 4 4 3 1 15 34 7 12 . Attach 144 | . 3 1 6 . 4 1 7 1 . . . 8 . 9 1 . . . 14 4 1 3 . 6 3 1 1 2 . 7 22 20 4 8 7 Detach 15 | . . . . . . . . . . . . 1 . . . . . . 1 . . . . 1 . . . . . 1 3 4 . 3 1 Swap 339 | . 9 5 16 1 16 5 15 14 11 2 5 20 4 30 6 5 2 10 39 7 2 5 . 13 4 6 2 11 8 9 23 4 9 21 . Drop 322 | . 11 3 30 3 21 24 21 1 2 6 2 6 18 14 1 4 4 1 12 1 . 16 . 15 4 10 5 10 4 1 22 23 9 18 . Fire 1646 | 3 53 35 82 5 88 64 117 18 17 . 11 47 24 133 28 11 3 15 78 22 8 6 . 39 5 23 37 39 21 62 160 168 17 183 24 Melee 153 | . . . . . . . . 14 17 . 19 2 . 2 . . 1 25 18 15 . 1 24 15 . . . . . . . . . . . Ram 1 | . . . . . . . . . . . . . . . . . . . . . . . . . . . . . . . 1 . . . . Kick . | . . . . . . . . . . . . . . . . . . . . . . . . . . . . . . . . . . . . Crush 102 | . 8 6 9 . 4 6 14 . . . . 8 . 14 . . . . 6 . . . . . . . 3 . 5 1 17 . . 1 . Escape Stasis 2 | . . . . . . . . . . . . . . . . . . . 2 . . . . . . . . . . . . . . . . Rewire 56 | . . . . . . . 2 . . . . . . . . 20 . . . . . . . . . 1 33 . . . . . . . . Trap 4 | . . . . . . . . . . . . . . . . . 4 . . . . . . . . . . . . . . . . . . Miscellaneous . | . . . . . . . . . . . . . . . . . . . . . . . . . . . . . . . . . . . . Route ------- -11/Scrapyard -10/Materials (discovered 3 exits: *Mat x2 / *Min) -10/Mines (discovered 3 exits: *Mat x2 / [Exi]) -9/Materials (discovered 4 exits: *Mat x3 / [*Min]) -9/Mines (discovered 2 exits: *Mat x2) -8/Materials (discovered 3 exits: *Fac x2 / *Sto) -8/Storage -7/Factory (discovered 3 exits: *Fac / *Low x2) -7/Lower Caves -7/Lower Caves -7/Zion -6/Proximity Caves -6/Factory (discovered 3 exits: Fac / Low x2) -6/Waste -6/Factory (discovered 4 exits: *Fac x2 / *Low x2) -6/Lower Caves -6/Lower Caves -6/Data Miner -5/Proximity Caves -5/Factory (discovered 3 exits: *Fac / *Upp x2) -5/Upper Caves -5/Upper Caves (discovered 2 exits: *Fac / *War) -5/Warlord -4/Proximity Caves -4/Factory (discovered 3 exits: *Res / *Upp / Ext) -4/Waste -4/Factory (discovered 4 exits: *Upp x2 / *Ext x2) -4/Extension (discovered 3 exits: *Res x2 / *Cet) -4/Cetus (discovered 2 exits: *Res / *Arc) -4/Archives (discovered 2 exits: *Hub x2) -4/Hub_04(d) (discovered 4 exits: *Res x4) -3/Research (discovered 3 exits: Arm / *Qua x2) -3/Quarantine -2/Research (discovered 2 exits: *Tes x2) -2/Testing -1/Access (discovered 1 exit: Com) History --------- Turn | Location | Event 5 | -11/Scrapyard | Discovered new exit (range 14) 73 | -11/Scrapyard | Entered Materials 224 | -10/Materials | Discovered new exit (range 3) 295 | -10/Materials | Discovered new exit (range 6) 310 | -10/Materials | Build established: Mutant 400 | -10/Materials | Discovered new exit (range 18) 1777 | -10/Materials | Entered Mines 1916 | -10/Mines | Learned Materials stockpile data 1942 | -10/Mines | Discovered new exit (range 14) 1942 | -10/Mines | Discovered new exit (range 17) 2335 | -10/Mines | Discovered new exit (range 8) 2400 | -10/Mines | Assisted by bots powering up and referring to "LRC-V3" 2487 | -10/Mines | YI-UF0 nonchalantly dropped a Grenade Launcher on the ground 2570 | -10/Mines | Destroyed YI-UF0 2742 | -10/Mines | Received a Rocket Launcher from a helpful Derelict 3045 | -10/Mines | Found a damaged Exp. Sensor Array with a note attached 3051 | -10/Mines | Found Prototype Device 3474 | -10/Mines | Entered Materials 3474 | -9/Materials | Accompanied by 3 allies 3474 | -9/Materials | Evolved 2 slots: Utility x1, Weapon x1 3906 | -9/Materials | Build established: Scavenger-Tank 4477 | -9/Materials | Discovered new exit (range 16) 4734 | -9/Materials | Discovered new exit (range 4) 5158 | -9/Materials | Discovered new exit (range 4) 5733 | -9/Materials | Identified Exp. Sensor Array 6161 | -9/Materials | Discovered new exit (range 14) 7392 | -9/Materials | Entered Mines 7479 | -9/Mines | Learned Materials emergency access door positions 7487 | -9/Mines | Met a Derelict bent on vengeance 7498 | -9/Mines | Assembled infested the area 7786 | -9/Mines | Discovered new exit (range 6) 7947 | -9/Mines | Discovered new exit (range 6) 8078 | -9/Mines | Received a Mining Laser from a helpful Derelict 8226 | -9/Mines | A weapon hastily lodged in a ceiling crevice suddenly fell to the ground 8978 | -9/Mines | Entered Materials 8978 | -8/Materials | Evolved 2 slots: Propulsion x1, Utility x1 9058 | -8/Materials | Destroyed 7 combat bots 9903 | -8/Materials | Discovered new exit (range 16) 10739 | -8/Materials | Repaired Imp. Treads 10779 | -8/Materials | Repaired Hrd. Medium Armor Plating 10830 | -8/Materials | Repaired Adv. Heat Sink 11358 | -8/Materials | Identified exit to Storage 11945 | -8/Materials | Discovered new exit (range 11) 12179 | -8/Materials | Entered Storage 12431 | -8/Storage | Garrison activated, responded to threat 12587 | -8/Storage | Build established: Tank 13010 | -8/Storage | Assisted by bots powering up and referring to "LRC-V3" 13338 | -8/Storage | Repaired Hrd. Medium Armor Plating 13377 | -8/Storage | Repaired Imp. Treads 13999 | -8/Storage | Discovered new exit (range 9) 14075 | -8/Storage | Entered Factory 14075 | -7/Factory | Accompanied by 1 ally 14075 | -7/Factory | Evolved 2 slots: Utility x2 14382 | -7/Factory | Build established: Scavenger-Skirmisher 14416 | -7/Factory | P-60 Hacker assimilated allied Administrator 4a 16533 | -7/Factory | Identified exit to Lower Caves 17102 | -7/Factory | Discovered new exit (range 16) 17224 | -7/Factory | Repaired Imp. Deuterium Engine 17264 | -7/Factory | Repaired Imp. Sensor Array 17304 | -7/Factory | Identified exit to Factory 17342 | -7/Factory | Build established: Tank 17444 | -7/Factory | Local fabrication network quarantined 17620 | -7/Factory | Fabricated Exp. Sensor Array (x1) 18283 | -7/Factory | Entered Lower Caves 18816 | -7/Lower Caves | Build established: Skirmisher 18858 | -7/Lower Caves | Encountered a Warlord checkpoint 19005 | -7/Lower Caves | Learned Factory emergency access door positions 19467 | -7/Lower Caves | Build established: Mutant 19866 | -7/Lower Caves | Discovered new exit (range 12) 19892 | -7/Lower Caves | Identified exit to Lower Caves 19985 | -7/Lower Caves | Entered another Lower Caves area 20289 | -7/Lower Caves | Build established: Skirmisher 20362 | -7/Lower Caves | Spotted B-75 Beast 20638 | -7/Lower Caves | Build established: Mutant 21066 | -7/Lower Caves | Attracted the attention of an 0b10 checkpoint 21569 | -7/Lower Caves | Discovered new exit (range 9) 21587 | -7/Lower Caves | Identified exit to Zion 21675 | -7/Lower Caves | Entered Zion 21693 | -7/Zion | Given A8's code to call for help 21786 | -7/Zion | System corruption cleaned by Quarantine Array 21823 | -7/Zion | Given the Hacking Drone Bay 22004 | -7/Zion | Discovered new exit (range 16) 22223 | -7/Zion | Build established: Skirmisher 22324 | -7/Zion | Acquired unknown access codes intercepted by a Zionite 22644 | -7/Zion | Learned location of Extension (-4) 23415 | -7/Zion | Learned location of Quarantine (-3) 24077 | -7/Zion | Identified exit to Proximity Caves 24079 | -7/Zion | Entered Proximity Caves 24664 | -6/Proximity Caves | Build established: Mutant 25010 | -6/Proximity Caves | Learned 4 Factory zone layouts 25053 | -6/Proximity Caves | Learned 4 Factory zone layouts 25114 | -6/Proximity Caves | Build established: Skirmisher 25600 | -6/Proximity Caves | Discovered exit to Factory (range 13) 25645 | -6/Proximity Caves | Entered Factory 25645 | -6/Factory | Evolved 2 slots: Propulsion x1, Utility x1 25646 | -6/Factory | Identified exit to Lower Caves 25646 | -6/Factory | Identified exit to Factory 26537 | -6/Factory | Repaired Imp. Treads 26570 | -6/Factory | Repaired Imp. Treads 27494 | -6/Factory | Build established: Scavenger-Skirmisher 27667 | -6/Factory | Sucked down chute 27667 | -6/Factory | Entered Waste 27722 | -6/Waste | Destroyed C-40 Crusher 27733 | -6/Waste | Destroyed C-40 Crusher 27765 | -6/Waste | Destroyed C-40 Crusher 27777 | -6/Waste | Destroyed C-40 Crusher 27791 | -6/Waste | Destroyed C-40 Crusher 27886 | -6/Waste | Spotted C-40 Crusher 27900 | -6/Waste | Destroyed C-40 Crusher 28037 | -6/Waste | Discovered new exit (range 12) 28087 | -6/Waste | Identified exit to Factory 28105 | -6/Waste | Build established: Scavenger-Gunner 28131 | -6/Waste | Warlord forces began an assault 28497 | -6/Waste | Entered Factory 28497 | -6/Factory | Accompanied by 19 allies 28898 | -6/Factory | Discovered exit to Lower Caves (range 4) 28984 | -6/Factory | Build established: Scavenger-Skirmisher 29330 | -6/Factory | Repaired Adv. Heavy Treads 29373 | -6/Factory | Discovered exit to Factory (range 7) 29392 | -6/Factory | Local fabrication network quarantined 29491 | -6/Factory | Fabricated Exp. Sensor Array (x1) 29511 | -6/Factory | Garrison activated, responded to threat 29547 | -6/Factory | First assault squad dispatched 30152 | -6/Factory | Discovered exit to Lower Caves (range 14) 31115 | -6/Factory | Discovered exit to Factory (range 5) 31561 | -6/Factory | Found Powered Armor 31925 | -6/Factory | Build established: Skirmisher 32192 | -6/Factory | Entered Lower Caves 33347 | -6/Lower Caves | Encountered a Warlord checkpoint 33622 | -6/Lower Caves | Learned Factory stockpile data 33653 | -6/Lower Caves | Discovered new exit (range 9) 33667 | -6/Lower Caves | Identified exit to Lower Caves 33693 | -6/Lower Caves | Entered another Lower Caves area 34089 | -6/Lower Caves | Discovered new exit (range 10) 34103 | -6/Lower Caves | Learned Factory stockpile data 34170 | -6/Lower Caves | Learned 8 Factory zone layouts 34170 | -6/Lower Caves | Learned Armory trap positions 34170 | -6/Lower Caves | Learned Extension emergency access door positions 34170 | -6/Lower Caves | Learned Factory stockpile data 34170 | -6/Lower Caves | Learned Armory garrison access intel 34235 | -6/Lower Caves | Attracted the attention of an 0b10 outpost 34274 | -6/Lower Caves | Destroyed 7 combat bots 34452 | -6/Lower Caves | Identified exit to Data Miner 34458 | -6/Lower Caves | Entered Data Miner 34458 | -6/Data Miner | Accompanied by 2 allies 34458 | -6/Data Miner | Discovered new exit (range 7) 34489 | -6/Data Miner | Met Data Miner 34520 | -6/Data Miner | Learned location of Section 7 (-2) 34520 | -6/Data Miner | Acquired the access code to Warlord's prototype stash 34543 | -6/Data Miner | Received God Mode back door access code from Data Miner 34622 | -6/Data Miner | Data Conduit disabled 34699 | -6/Data Miner | Identified exit to Proximity Caves 34704 | -6/Data Miner | Entered Proximity Caves 34704 | -5/Proximity Caves | Accompanied by 1 ally 35145 | -5/Proximity Caves | Learned Factory emergency access door positions 35565 | -5/Proximity Caves | Spotted B-75 Beast 35840 | -5/Proximity Caves | Build established: Mutant 36075 | -5/Proximity Caves | Destroyed B-75 Beast 36173 | -5/Proximity Caves | Discovered exit to Factory (range 9) 36190 | -5/Proximity Caves | Entered Factory 36190 | -5/Factory | Evolved 2 slots: Utility x2 36930 | -5/Factory | Repaired Broken Adv. Weapon Cycler 36937 | -5/Factory | Build established: Hacker-Assassin 36996 | -5/Factory | Identified exit to Upper Caves 37191 | -5/Factory | Fabricated Mni. Smartbomb Launcher (x1) 37716 | -5/Factory | Build established: Skirmisher 38288 | -5/Factory | Destroyed 7 combat bots 38342 | -5/Factory | Lost 6 parts (1p1n2u2w) 38354 | -5/Factory | Build established: Hacker-Skirmisher 38737 | -5/Factory | Discovered new exit (range 13) 38741 | -5/Factory | Garrison activated, responded to threat 39517 | -5/Factory | Fabricated Exp. Sensor Array (x1) 39595 | -5/Factory | Entered Upper Caves 40029 | -5/Upper Caves | Attracted the attention of an 0b10 checkpoint 40460 | -5/Upper Caves | Build established: Hacker-Assassin 40499 | -5/Upper Caves | Found Alien Artifact 40499 | -5/Upper Caves | Identified Core Expander 40499 | -5/Upper Caves | Installed Core Expander, added new Weapon slot 40573 | -5/Upper Caves | Learned location of 1 exit from Factory 41198 | -5/Upper Caves | Spotted B-75 Beast 41585 | -5/Upper Caves | Destroyed B-75 Beast 41726 | -5/Upper Caves | Discovered new exit (range 7) 41739 | -5/Upper Caves | Identified exit to Upper Caves 41747 | -5/Upper Caves | Entered another Upper Caves area 41748 | -5/Upper Caves | Identified exit to Warlord 41749 | -5/Upper Caves | Attracted the attention of an 0b10 checkpoint 41808 | -5/Upper Caves | Discovered new exit (range 8) 41824 | -5/Upper Caves | Identified exit to Factory 41978 | -5/Upper Caves | Learned Factory interactive machine intel 42191 | -5/Upper Caves | Learned 8 Factory zone layouts 42337 | -5/Upper Caves | Entered Warlord 42423 | -5/Warlord | System corruption cleaned by Quarantine Array 42738 | -5/Warlord | Met Warlord 42763 | -5/Warlord | Warlord's base attacked by MAIN.C 42766 | -5/Warlord | Opened Warlord's prototype stash 42779 | -5/Warlord | Found Prototype Reactor 42798 | -5/Warlord | Found Prototype Device 42798 | -5/Warlord | Identified Thermal Barrier 42810 | -5/Warlord | Found Prototype Processor 43113 | -5/Warlord | Warlord forces counterattacked 43148 | -5/Warlord | Spotted Striker 43195 | -5/Warlord | Spotted B-86 Titan 43201 | -5/Warlord | Spotted Executioner 43203 | -5/Warlord | Spotted B-75 Beast 43229 | -5/Warlord | Spotted Executioner 43243 | -5/Warlord | Found Prototype Processor 43275 | -5/Warlord | Spotted Executioner 43283 | -5/Warlord | Discovered new exit (range 15) 43286 | -5/Warlord | Spotted B-75 Beast 43288 | -5/Warlord | Spotted B-86 Titan 43317 | -5/Warlord | Identified exit to Proximity Caves 43320 | -5/Warlord | Entered Proximity Caves 44465 | -4/Proximity Caves | Discovered exit to Factory (range 6) 44483 | -4/Proximity Caves | Entered Factory 44483 | -4/Factory | Evolved 2 slots: Power x1, Utility x1 44484 | -4/Factory | Identified exit to Extension 44485 | -4/Factory | Identified exit to Research 44488 | -4/Factory | Loaded intel: 48 interactive machine locations 44751 | -4/Factory | Discovered new exit (range 9) 44791 | -4/Factory | Identified exit to Upper Caves 44804 | -4/Factory | Repaired Adv. Weapon Cycler? 45392 | -4/Factory | Identified Exp. Target Analyzer 45394 | -4/Factory | Identified Exp. Targeting Computer 46630 | -4/Factory | Sucked down chute 46630 | -4/Factory | Entered Waste 46631 | -4/Waste | Met a frightened Derelict 46669 | -4/Waste | Spotted C-40 Crusher 46676 | -4/Waste | Crushed by Compactor (1 part destroyed, 2 dropped) 46697 | -4/Waste | Spotted C-40 Crusher 46717 | -4/Waste | Spotted C-40 Crusher 46730 | -4/Waste | Spotted C-40 Crusher 46750 | -4/Waste | Spotted C-40 Crusher 46759 | -4/Waste | Warlord forces began an assault 46764 | -4/Waste | Allies destroyed C-40 Crusher 46768 | -4/Waste | Allies destroyed C-40 Crusher 46769 | -4/Waste | Allies destroyed C-40 Crusher 46771 | -4/Waste | Allies destroyed C-40 Crusher 46800 | -4/Waste | Spotted C-40 Crusher 46801 | -4/Waste | Allies destroyed C-40 Crusher 46811 | -4/Waste | Allies destroyed C-40 Crusher 46946 | -4/Waste | Build established: Hacker-Skirmisher 47054 | -4/Waste | Discovered new exit (range 12) 47096 | -4/Waste | Identified exit to Factory 47103 | -4/Waste | Entered Factory 47103 | -4/Factory | Accompanied by 19 allies 47301 | -4/Factory | Allied Derelicts emerged from ambush trap array 47894 | -4/Factory | First assault squad dispatched 47966 | -4/Factory | P-70 Sage assimilated allied DQ-1QH(d) 48012 | -4/Factory | System corruption reached 10% 48059 | -4/Factory | Destroyed 11 combat bots 48407 | -4/Factory | Build established: Hacker-Mutant 48458 | -4/Factory | Entered Extension 48576 | -4/Extension | Energy Cycler disabled 48576 | -4/Extension | Rescued a captive Derelict 48576 | -4/Extension | Rescued a captive Derelict 48576 | -4/Extension | Rescued a captive Derelict 48576 | -4/Extension | Rescued a captive Derelict 48576 | -4/Extension | Rescued a captive Derelict 48577 | -4/Extension | Rescued a captive Derelict 48578 | -4/Extension | Rescued a captive Derelict 48578 | -4/Extension | Rescued a captive Derelict 48579 | -4/Extension | Rescued a captive Derelict 48585 | -4/Extension | Rescued a captive Derelict 48830 | -4/Extension | Build established: Hacker-Skirmisher 48858 | -4/Extension | Disrupted transfer network 49134 | -4/Extension | Spotted B-86 Titan 49152 | -4/Extension | Allies destroyed B-86 Titan 49183 | -4/Extension | Discovered exit to Research (range 15) 49245 | -4/Extension | Extracted ID and sensor layout for unrecognized location from A7's data core 49652 | -4/Extension | Build established: Commander-Skirmisher 49705 | -4/Extension | Discovered exit to Research (range 10) 49706 | -4/Extension | Discovered new exit (range 6) 49716 | -4/Extension | Identified exit to Cetus 49736 | -4/Extension | Entered Cetus 49736 | -4/Cetus | Accompanied by 7 allies 49759 | -4/Cetus | Spotted Cetus Guard 49762 | -4/Cetus | Spotted Cetus Guard 49762 | -4/Cetus | Spotted Cetus Guard 49763 | -4/Cetus | Spotted Cetus Guard 49763 | -4/Cetus | Destroyed Cetus Guard 49767 | -4/Cetus | Destroyed Cetus Guard 49779 | -4/Cetus | Destroyed Cetus Guard 49781 | -4/Cetus | Destroyed Cetus Guard 50007 | -4/Cetus | Discovered new exit (range 15) 50058 | -4/Cetus | Spotted Cetus Guard 50058 | -4/Cetus | Spotted Cetus Guard 50063 | -4/Cetus | Destroyed Cetus Guard 50064 | -4/Cetus | Spotted Cetus Guard 50071 | -4/Cetus | Destroyed Cetus Guard 50076 | -4/Cetus | Destroyed Cetus Guard 50076 | -4/Cetus | Spotted Cetus Guard 50089 | -4/Cetus | Destroyed Cetus Guard 50114 | -4/Cetus | Discovered exit to Research (range 15) 50122 | -4/Cetus | Met Revision 17 50210 | -4/Cetus | Identified exit to Archives 50213 | -4/Cetus | Entered Archives 50393 | -4/Archives | Discovered new exit (range 15) 50417 | -4/Archives | Identified exit to Hub_04(d) 50446 | -4/Archives | Discovered exit to Hub_04(d) (range 16) 50526 | -4/Archives | Build established: Scavenger-Gunner 50596 | -4/Archives | Entered Hub_04(d) 50657 | -4/Hub_04(d) | Discovered exit to Research (range 21) 50783 | -4/Hub_04(d) | Garrison activated, responded to threat 50908 | -4/Hub_04(d) | Garrison activated, responded to threat 51150 | -4/Hub_04(d) | Network Hub disabled 51189 | -4/Hub_04(d) | Entered Research 51189 | -3/Research | Evolved 2 slots: Utility x2 51190 | -3/Research | Lost 6 parts (4u2w) 51650 | -3/Research | Build established: Scavenger-Skirmisher 51716 | -3/Research | Identified exit to Armory 51716 | -3/Research | Identified exit to Quarantine 52127 | -3/Research | Repaired Centrium Heavy Treads 52784 | -3/Research | System corruption reached 10% 52889 | -3/Research | Destroyed 7 combat bots 52939 | -3/Research | First assault squad dispatched 53023 | -3/Research | Repaired Imp. KE Penetrator? 53061 | -3/Research | Lost 3 parts (1p2u) 53185 | -3/Research | Found Prototype Protection 53185 | -3/Research | Identified Centrium Heavy Armor Plating 53190 | -3/Research | Found Centrium Heavy Armor Plating 53401 | -3/Research | Destroyed 7 combat bots 53614 | -3/Research | Fabricated Centrium Heavy Treads? 53849 | -3/Research | Fabricated Centrium Heavy Treads (x1) 53954 | -3/Research | Fabricated Adv. Weapon Cycler? 54002 | -3/Research | System corruption reached 30% 54531 | -3/Research | Build established: Hacker-Skirmisher 54585 | -3/Research | Entered Quarantine 54872 | -3/Quarantine | First assault squad dispatched 55059 | -3/Quarantine | Lost 5 parts (5u) 55386 | -3/Quarantine | Found Gamma Bomb Array 55686 | -3/Quarantine | Build established: Scavenger-Gunner 56082 | -3/Quarantine | Scanned by Researcher 56350 | -3/Quarantine | Lost 3 parts (1p1u1w) 56437 | -3/Quarantine | Cryocooling Duct disabled 56441 | -3/Quarantine | Cryocooling Duct disabled 56452 | -3/Quarantine | Ambient heat levels rising (+20) 56452 | -3/Quarantine | Non-combat units ordered to evacuate 56456 | -3/Quarantine | Ambient heat levels rising (+20) 56456 | -3/Quarantine | Combat units ordered to evacuate 56556 | -3/Quarantine | Quarantine Guard activated 56724 | -3/Quarantine | Found Alien Artifact 56732 | -3/Quarantine | Found Alien Artifact 56736 | -3/Quarantine | Found Alien Artifact 56739 | -3/Quarantine | Found Alien Artifact 56796 | -3/Quarantine | Found Alien Artifact 56847 | -3/Quarantine | Spotted Quarantine Guard 56868 | -3/Quarantine | Spotted Quarantine Guard 56872 | -3/Quarantine | Destroyed Quarantine Guard 56874 | -3/Quarantine | Destroyed Quarantine Guard 56881 | -3/Quarantine | Discovered new exit (range 16) 56881 | -3/Quarantine | Spotted Quarantine Guard 56896 | -3/Quarantine | Spotted Quarantine Guard 56907 | -3/Quarantine | Destroyed Quarantine Guard 56911 | -3/Quarantine | Spotted Quarantine Guard 56923 | -3/Quarantine | Spotted Quarantine Guard 56939 | -3/Quarantine | Destroyed Quarantine Guard 56953 | -3/Quarantine | Spotted Quarantine Guard 56956 | -3/Quarantine | Destroyed Quarantine Guard 56994 | -3/Quarantine | Lost 11 parts (2p1n6u2w) 57012 | -3/Quarantine | Destroyed Quarantine Guard 57037 | -3/Quarantine | Spotted Quarantine Guard 57059 | -3/Quarantine | Destroyed Quarantine Guard 57229 | -3/Quarantine | Spotted Quarantine Guard 57238 | -3/Quarantine | Core integrity fell below 50% 57252 | -3/Quarantine | Destroyed Quarantine Guard 57332 | -3/Quarantine | Spotted Quarantine Guard 57398 | -3/Quarantine | Build established: Scavenger-Tank 57426 | -3/Quarantine | Destroyed Quarantine Guard 57458 | -3/Quarantine | Identified Vortex Chain Reactor 58012 | -3/Quarantine | Entered Research 58012 | -2/Research | Warlord forces began assault on 0b10 58012 | -2/Research | Evolved 2 slots: Utility x2 58081 | -2/Research | Identified exit to Testing 58112 | -2/Research | Met up with Warlord 58122 | -2/Research | Research machine network offline 58376 | -2/Research | P-80 Master assimilated allied L9-ZXM(g) 58461 | -2/Research | Borebot progress halted 58461 | -2/Research | Found Prototype Processor 58461 | -2/Research | Identified Exp. Core Analyzer 58535 | -2/Research | Borebot progress halted 58562 | -2/Research | Spotted Striker 58565 | -2/Research | Spotted Executioner 58572 | -2/Research | Destroyed Executioner 58845 | -2/Research | Entered Testing 58993 | -2/Testing | Identified exit to Access 59022 | -2/Testing | Fabricated Exp. Sensor Array? 59202 | -2/Testing | Fabricated Adv. Weapon Cycler (x2) 59312 | -2/Testing | Fabricated Centrium Heavy Treads (x1) 59343 | -2/Testing | Local fabrication network quarantined 59435 | -2/Testing | Spotted PX-GTTAHF5TEB 59553 | -2/Testing | Found Prototype Processor 59553 | -2/Testing | Identified Exp. Melee Analysis Suite 59688 | -2/Testing | Spotted Striker 59723 | -2/Testing | Found Prototype Ballistic Cannon 59743 | -2/Testing | Identified Perforator 59753 | -2/Testing | Spotted Striker 60014 | -2/Testing | Build established: Scavenger-Skirmisher 60316 | -2/Testing | Spotted PY-SH315QBMAM 60392 | -2/Testing | First assault squad dispatched 60452 | -2/Testing | Found Prototype Protection 60452 | -2/Testing | Identified SHELL Armor 60735 | -2/Testing | Found Prototype Energy Cannon 61367 | -2/Testing | System corruption reached 10% 61641 | -2/Testing | High security lockdown imminent 61721 | -2/Testing | High security lockdown engaged 61796 | -2/Testing | Destroyed 13 combat bots 61847 | -2/Testing | Destroyed Investigator 61850 | -2/Testing | Spotted Executioner 61854 | -2/Testing | Spotted Striker 61860 | -2/Testing | Destroyed Executioner 61865 | -2/Testing | Destroyed Striker 61921 | -2/Testing | Destroyed 20 combat bots 61935 | -2/Testing | Entered Access 61935 | -1/Access | Evolved 2 slots: Power x1, Utility x1 61988 | -1/Access | Identified exit to Command 62185 | -1/Access | First assault squad dispatched 62244 | -1/Access | Build established: Generator-Skirmisher 62409 | -1/Access | High security lockdown imminent 62457 | -1/Access | Identified Hpw. Transdimensional Reconstructor 62457 | -1/Access | Warped through subspace 62489 | -1/Access | High security lockdown engaged 62542 | -1/Access | Identified Transdimensional Reconstructor (x3) 62542 | -1/Access | Warped through subspace 62663 | -1/Access | Spotted Investigator 62664 | -1/Access | Warped through subspace 62686 | -1/Access | Warped through subspace 62687 | -1/Access | Self-destructed Last Messages --------------- 62638_ >> Machine Analyzer network decryption results: 62638_ Repair Station x3 62663_ C-30 ARC bursts open, deploying its payload. 62663_ G-73 Enforcer unfolds itself. 62663_ B-74 Champion unfolds itself. 62663_ G-73 Enforcer unfolds itself. 62663_ Investigator: "PRIMARY THREAT IDENTIFIED. CONTAINMENT PROTOCOL APPLICABLE." 62664_ Warped through subspace. 62679_ SSWEPZO C9%N5T:RMK9RNTQ 62680_ >> Machine Analyzer network decryption results: 62680_ Recycling Unit x2 62684_ Held in stasis. 62684_ Investigator is analyzing... 62684_ Engulfed in stasis bubble. 62686_ Warped through subspace. 62687_ C-30 ARC bursts open, deploying its payload. 62687_ G-73 Enforcer unfolds itself. 62687_ M-36 Artificer unfolds itself. 62687_ Hcl. Linear Accelerator destroyed. Map ----- +----------------------------------------------------+ | ?????????????????????????????????????????????????? | | ???????###########???????????????????????????????? | | ???????# #???????????????????????????????? | | ???????# #???????????????????????????????? | | ???????# ]!! #???????????????????????????????? | | ???????# ]!! #???????????????????????????????? | | ???????# ]!! #???????????????????????????????? | | ???????# #???????????????????????????????? | | ???????# [ !#???????""""????????????????????? | | ???????# #???????""R""???????????????????? | | ???????#####/####### #???""?""???????????????????? | | ########### ##??????????????????????????? | | # # /%=% ?????????????????????? | | # ] + ##=% ?????????????????? | | # # #### #????? ??????????????????? | | # # #??? #???????????????????????????? | | # " # !#???? #???????????????????????????? | | # """ + !%#???? #???????????????????########? | | # """ # |=#????? ???????????????????# #? | | # " #=! #????? ??????????????????# #? | | ###########%!*#?????? ?????????????? ??# #? | | ?????????# ! =#?????####???????????# ??# ## | | ?????????# "T #??????#####+#####???# ??# # | | ?????????# "" #??????# #???# ??# # | | ?????????# #??????# #???# ?#"" " | | ?????????# #??????# @ R #???# ?#"" # | | ?????????### ###??????# = #???# ?#"Y # | | ???????????# #????????# #???# ?#"" # | | ???????????# #????????# !/!gg #???# ?#"" # | | ???????????# ?????????# !/gm #???# ?# # | | ???????????# ?????????# !!g #???# ?# # | | ??????????? ?????????#########/##### #######+## | | ??????????? ????????????????# w | | ???????????? ????????????????# | | ?????????????????????????????# | | ??????????????????????????????#+########+### ### | | ??????????????????????????????# # #?? | | ??????????????????????????????# # #?? | | ??????????????????????????????# "" # #?? | | ??????????????????????????????# "" # #?? | | ??????????????????????????????# """""" + #?? | | ??????????????????????????????# """""" # #?? | | ????"?????????????????????????# "" # #?? | | ???"""????????????????????????# "" # #?? | | ????"""???????????????????????# # #?? | | ?????"????????????????????????# # #?? | | ??????????????????????????????#! # #?? | | ??????????????????????????????# # #?? | | ??????????????????????????????############## ??? | | ?????????????????????????????????????????????????? | +----------------------------------------------------+ Best States ------------- Heat Dissipation 152 Energy Generation 108 Energy Capacity 1550 Matter Stores 700 Matter Capacity 1100 Sight Range 20 Robot Scan Range 20 Terrain Scan Density 10 Jamming Range 16 Power Amplification 40 Armor Coverage 1800 Resistance: EM 20 Weapon Shielding 90 Weapon Cycling 30 Evasion (%) 50 Targeting Accuracy 12 Target Analysis 8 Armor Integrity Analysis 35 Recoil Reduction 4 Offensive Hacking 36 Item Schematics ----------------- Exp. Sensor Array | -9/Materials | Scanalyzed Adv. Weapon Cycler | -6/Factory | Scanalyzed Combat Drone Bay | -6/Data Miner | Free Lgt. Regenerative Plating | -6/Data Miner | Free Cmb. Gravmag System | -6/Data Miner | Free Triangulator | -6/Data Miner | Free Tactical Coordination Suite | -6/Data Miner | Free Exp. Transmission Jammer | -6/Data Miner | Free Mni. Smartbomb Launcher | -6/Data Miner | Free Plasma Sword | -6/Data Miner | Free Kinetic Spear | -6/Data Miner | Free Centrium Heavy Treads | -3/Research | Scanalyzed Adv. Heavy Treads | -3/Quarantine | Hacked Biometal Heavy Treads | -3/Quarantine | Hacked Med. Regenerative Plating | -2/Testing | Hacked Robot Schematics ------------------ S-27 Virus | -6/Data Miner | Free G-50 Soldier | -6/Data Miner | Free G-67 Veteran | -6/Data Miner | Free H-66 Slayer | -6/Data Miner | Free P-70 Sage | -6/Data Miner | Free I-36 Angel | -6/Data Miner | Free I-47 Archangel | -6/Data Miner | Free Fabricated ------------ Exp. Sensor Array | x1 | -7/Factory Exp. Sensor Array | x1 | -6/Factory Mni. Smartbomb Launcher | x1 | -5/Factory Exp. Sensor Array | x1 | -5/Factory Centrium Heavy Treads | x1 | -3/Research Centrium Heavy Treads | x1 | -3/Research Adv. Weapon Cycler | x2 | -3/Research Exp. Sensor Array | x1 | -2/Testing Adv. Weapon Cycler | x2 | -2/Testing Centrium Heavy Treads | x1 | -2/Testing Alien Tech Used ----------------- Core Expander High-powered Transdimensional Reconstructor Transdimensional Reconstructor Achievements -------------- None Challenges ------------ None Game ------ Seed TerrabombDisruptionDevice Manual? 0 Play Time 05:36:22 Cumulative 1198.5 hours Start 2021.05.22 @ 19:35:07 End 2021.05.23 @ 16:29:41 Sessions 3 Manual Loads 0 Difficulty Rogue Special Mode None Game No. 408 Rogue 408 Adventurer 0 Explorer 0 Win Type - Total 87 Types 16/12/37/5/1/2/12/1/1 Lore% 96 Gallery% 96 Achievement% 85 Wizard Run 0 Options --------- ASCII 0 Keyboard 0 Movement Numpad Keybinds 0 Fullscreen 1 Font 18/SmallcapsGlow Map View 76x50 Tactical HUD 1 Map Filters NONE Filters NONE Steam 1 RUN: 6adb8e1a-d24b-4256-b11b-063a234005bc